Workbook

Sheet 封面
A9: 西安市阎良区2017年财政决算表

Sheet 目录
A1: 目 录
A2: 西安市阎良区2017年财政收支决算表
A3: 1、西安市阎良区2017年一般公共预算收入决算表……………………………………………………………………………………………附表一
A4: 2、西安市阎良区2017年一般公共预算支出决算表……………………………………………………………………………………………附表二
A5: 3、西安市阎良区2017年一般公共预算本级支出决算表（按功能分类科目）……………………………………………………………………附表三
A6: 4、西安市阎良区2017年一般公共预算本级支出决算表（按政府经济分类科目）………………………………………………………………附表四
A7: 5、西安市阎良区2017年一般公共预算（本级）基本支出决算表……………………………………………………………………………附表五
A8: 6、西安市阎良区2017年一般公共预算税收返还和转移支付决算表…………………………………………………………………………附表六
A9: 7、西安市阎良区2017年政府一般债务限额和余额情况表……………………………………………………………………………………附表七
A10: 8、西安市阎良区2017年政府性基金预算收入决算表…………………………………………………………………………………………附表八
A11: 9、西安市阎良区2017年政府性基金预算支出决算表…………………………………………………………………………………………附表九
A12: 10、西安市阎良区2017年政府性基金预算支出决算表（按功能分类科目）…………………………………………………………………附表十
A13: 11、西安市阎良区2017年政府性基金预算支出决算表（按政府经济分类科目）……………………………………………………………附表十一
A14: 12、西安市阎良区2017年政府性基金转移支付表………………………………………………………………………………………………附表十二
A15: 13、西安市阎良区2017年政府专项债务限额和余额情况决算表………………………………………………………………………………附表十三
A16: 14、西安市阎良区2017年国有资本经营决算收入表……………………………………………………………………………………………附表十四
A17: 15、西安市阎良区2017年国有资本经营决算支出表……………………………………………………………………………………………附表十五
A18: 16、西安市阎良区2018年社会保险基金决算收入表……………………………………………………………………………………………附表十六
A19: 17、西安市阎良区2018年社会保险基金决算支出表……………………………………………………………………………………………附表十七
A20: 18、西安市阎良区2017年“三公”经费决算表……………………………………………………………………………………………………附表十八

Sheet 一般收入
A1: 附表1
A2: 西安市阎良区2017年一般公共预算收入决算表
A4: 项 目 | B4: 2017年 | E4: 2016年决算数 | F4: 2017年决算数
B5: 年初预算数 | C5: 调整预算数 | D5: 决算数 | F5: 占调整预算％ | G5: 与上年比＋－％
A6: 一、税收收入 | B6: =SUM(B7,B19,B20) -> 92,570 | C6: =SUM(C7,C19,C20) -> 84,070 | D6: =SUM(D7,D19,D20) -> 84,230 | E6: 82,066 | F6: =D6/C6 -> 100.2% | G6: =(D6-E6)/E6 -> 2.6%
A7: 工商税收 | B7: =SUM(B8:B18) -> 44,670 | C7: =SUM(C8:C18) -> 44,670 | D7: =SUM(D8:D18) -> 40,468 | E7: 38,170 | F7: =D7/C7 -> 90.6% | G7: =(D7-E7)/E7 -> 6.0%
A8: 增值税 | B8: 22,080 | C8: 22,080 | D8: 19,166 | E8: 13,715 | F8: 86.8% | G8: 39.7%
A9: 营业税 | D9: 107 | E9: 5,702 | G9: -98.1%
A10: 企业所得税 | B10: 3,600 | C10: 3,600 | D10: 3,754 | E10: 2,603 | F10: =D10/C10 -> 104.3% | G10: 44.2%
A11: 个人所得税 | B11: 5,600 | C11: 5,600 | D11: 4,895 | E11: 5,040 | F11: =D11/C11 -> 87.4% | G11: -2.9%
A12: 资源税
A13: 城市维护建设税 | B13: 3,700 | C13: 3,700 | D13: 3,193 | E13: 3,255 | F13: =D13/C13 -> 86.3% | G13: =(D13-E13)/E13 -> -1.9%
A14: 房产税 | B14: 3,590 | C14: 3,590 | D14: 3,031 | E14: 2,859 | F14: =D14/C14 -> 84.4% | G14: =(D14-E14)/E14 -> 6.0%
A15: 印花税 | B15: 1,450 | C15: 1,450 | D15: 1,263 | E15: 1,050 | F15: 87.1% | G15: 20.3%
A16: 城镇土地使用税 | B16: 2,050 | C16: 2,050 | D16: 2,259 | E16: 1,688 | F16: 110.2% | G16: 33.8%
A17: 土地增值税 | B17: 1,150 | C17: 1,150 | D17: 1,159 | E17: 922 | F17: 100.8% | G17: 25.7%
A18: 车船税 | B18: 1,450 | C18: 1,450 | D18: 1,641 | E18: 1,336 | F18: 113.2% | G18: 22.8%
A19: 耕地占用税 | B19: 35,490 | C19: 35,490 | D19: 41,122 | E19: 33,062 | F19: 115.9% | G19: 24.4%
A20: 契税 | B20: 12,410 | C20: 3,910 | D20: 2,640 | E20: 10,834 | F20: 67.5% | G20: -75.6%
A21: 二、非税收入 | B21: =SUM(B22,B26:B30) -> 41,360 | C21: =SUM(C22,C26:C30) -> 34,860 | D21: =SUM(D22,D26:D30) -> 34,709 | E21: =SUM(E22,E26:E30) -> 45,486 | F21: 99.6% | G21: -23.7%
A22: 专项收入 | B22: =SUM(B23:B25) -> 4,800 | C22: =SUM(C23:C25) -> 24,000 | D22: =SUM(D23:D25) -> 26,672 | E22: =SUM(E23:E25) -> 10,055 | F22: 111.1% | G22: 165.3%
A23: 排污费收入
A24: 教育费附加及地方教育附加收入 | B24: 1,800 | C24: 1,800 | D24: =1354+450 -> 1,804 | E24: 1,834 | F24: =D24/C24 -> 100.2% | G24: =(D24-E24)/E24 -> -1.6%
A25: 其他专项收入 | B25: 3,000 | C25: 22,200 | D25: 24,868 | E25: 8,221 | F25: 112.0% | G25: 202.5%
A26: 行政事业性收费收入 | B26: =33420+230 -> 33,650 | C26: 7,950 | D26: 4,589 | E26: 33,409 | F26: 57.7% | G26: -86.3%
A27: 罚没收入 | B27: 910 | C27: 910 | D27: 1,884 | E27: 878 | F27: 207.0% | G27: 114.6%
A28: 国有资本经营收入 | D28: 171
A29: 国有资源（资产）有偿使用收入 | B29: 2,000 | C29: 2,000 | D29: 1,190 | E29: 943 | F29: =D29/C29 -> 59.5% | G29: =(D29-E29)/E29 -> 26.2%
A30: 其他收入 | D30: 203 | E30: 201 | G30: 1.0%
A31: 一般公共预算收入小计 | B31: =B6+B21 -> 133,930 | C31: =C6+C21 -> 118,930 | D31: =D6+D21 -> 118,939 | E31: 127,552 | F31: =D31/C31 -> 100.0% | G31: -6.8%
A32: 上级补助收入 | B32: ※ | C32: ※ | D32: 101,277 | E32: 102,779 | F32: ※ | G32: ※
A33: 下级上解收入 | B33: ※ | C33: ※ | F33: ※ | G33: ※
A34: 地方政府债券转贷收入 | B34: ※ | C34: ※ | D34: 37,030 | E34: 28,390 | F34: ※ | G34: ※
A35: 上年结余 | B35: ※ | C35: ※ | D35: 4,500 | E35: 6,693 | F35: ※ | G35: ※
A36: 调入稳定调节基金 | B36: ※ | C36: ※ | D36: 457 | E36: 1,936 | F36: ※ | G36: ※
A37: 调入资金 | B37: ※ | C37: ※ | D37: =17049 -> 17,049 | E37: 7,503 | F37: ※ | G37: ※
B38: ※ | C38: ※ | F38: ※ | G38: ※
B39: ※ | C39: ※ | F39: ※ | G39: ※
A40: 一般公共预算收入总计 | B40: ※ | C40: ※ | D40: =SUM(D31:D39) -> 279,252 | E40: 274,853 | F40: ※ | G40: ※

Sheet 一般支出
A1: 附表2
A2: 西安市阎良区2017年一般公共预算支出决算表
F3: 单位：万元
A4: 项 目 | B4: 2017年 | E4: 2016 年决算数 | F4: 2017年决算数
B5: 年初预算数 | C5: 调整预算数 | D5: 决算数 | F5: 占调整预算％ | G5: 与上年比＋－％
A6: 一、一般公共服务支出 | B6: 14,500 | C6: 14,500 | D6: 16,612 | E6: 14,333 | F6: =D6/C6 -> 114.6% | G6: =(D6-E6)/E6 -> 15.9%
A7: 二、国防支出
A8: 三、公共安全支出 | B8: 8,670 | C8: 8,670 | D8: 13,507 | E8: 11,313 | F8: =D8/C8 -> 155.8% | G8: =(D8-E8)/E8 -> 19.4%
A9: 四、教育支出 | B9: 30,890 | C9: 30,890 | D9: 37,148 | E9: 39,507 | F9: 120.3% | G9: -6.0%
A10: 五、科学技术支出 | B10: 1,071 | C10: 1,071 | D10: 1,310 | E10: 2,441 | F10: 122.3% | G10: -46.3%
A11: 六、文化体育与传媒支出 | B11: 750 | C11: 750 | D11: 1,485 | E11: 1,401 | F11: 198.0% | G11: 6.0%
A12: 七、社会保障和就业支出 | B12: 13,290 | C12: 13,290 | D12: 34,873 | E12: 31,745 | F12: 262.4% | G12: 9.9%
A13: 八、医疗卫生与计划生育支出 | B13: 11,450 | C13: 13,450 | D13: 24,420 | E13: 24,651 | F13: 181.6% | G13: -0.9%
A14: 九、节能环保支出 | D14: 1,819 | E14: 227 | G14: 701.3%
A15: 十、城乡社区支出 | B15: =44010+230 -> 44,240 | C15: 29,840 | D15: 64,161 | E15: 59,646 | F15: =D15/C15 -> 215.0% | G15: 7.6%
A16: 十一、农林水支出 | B16: 3,730 | C16: 4,130 | D16: 29,187 | E16: 27,443 | F16: 706.7% | G16: 6.4%
A17: 十二、交通运输支出 | B17: 1,320 | C17: 1,320 | D17: 1,791 | E17: 2,207 | F17: 135.7% | G17: -18.8%
A18: 十三、资源勘探信息等支出 | B18: 2,390 | C18: 2,390 | D18: 6,189 | E18: 3,525 | F18: 259.0% | G18: 75.6%
A19: 十四、商业服务业等支出 | B19: 110 | C19: 110 | D19: 888 | E19: 696 | F19: 807.3% | G19: 27.6%
A20: 十五、金融支出 | B20: 210 | C20: 210 | D20: 208 | E20: 221 | F20: 99.0% | G20: -5.9%
A21: 十六、援助其他地区支出
A22: 十七、国土海洋气象等支出 | B22: 680 | C22: 680 | D22: 1,006 | E22: 6,670 | F22: =D22/C22 -> 147.9% | G22: =(D22-E22)/E22 -> -84.9%
A23: 十八、住房保障支出 | B23: 7,095 | C23: 7,095 | D23: 2,098 | E23: 3,022 | F23: 29.6% | G23: -30.6%
A24: 十九、粮油物资储备支出 | B24: 330 | C24: 330 | D24: 383 | E24: 579 | F24: 116.1% | G24: -33.9%
A25: 二十、预备费 | B25: 1,600 | C25: 1,600 | F25: 0.0%
A26: 二十一、债务付息支出 | D26: 2,217 | E26: 807 | G26: =(D26-E26)/E26 -> 174.7%
A27: 二十二、其他支出 | B27: 104 | C27: 104 | D27: 234 | E27: 248 | F27: =D27/C27 -> 225.0% | G27: -5.6%
A31: 一般公共预算支出小计 | B31: =SUM(B6:B28) -> 142,430 | C31: 130,430 | D31: 239,536 | E31: 230,682 | F31: =D31/C31 -> 183.7% | G31: =(D31-E31)/E31 -> 3.8%
A32: 上解上级支出 | B32: ※ | C32: ※ | D32: 3,853 | E32: 7,140 | F32: ※ | G32: ※
A33: 补助下级支出 | B33: ※ | C33: ※ | F33: ※ | G33: ※
A34: 地方政府债券还本支出 | B34: ※ | C34: ※ | D34: 33,696 | E34: 32,089 | F34: ※ | G34: ※
A35: 增设预算周转金 | B35: ※ | C35: ※ | E35: -15 | F35: ※ | G35: ※
A36: 安排预算稳定调节基金 | B36: ※ | C36: ※ | D36: 167 | E36: 457 | F36: ※ | G36: ※
A37: 累计结余 | B37: ※ | C37: ※ | D37: 2,000 | E37: 4,500 | F37: ※ | G37: ※
A38: 减：结转下年支出 | B38: ※ | C38: ※ | D38: 2,000 | E38: 4,500 | F38: ※ | G38: ※
A39: 等：净结余 | B39: ※ | C39: ※ | F39: ※ | G39: ※
A40: 一般公共预算支出总计 | B40: ※ | C40: ※ | D40: =SUM(D31:D37) -> 279,252 | E40: 274,853 | F40: ※ | G40: ※

Sheet 一般本级支出（功能分类）
A1: 附表3
A2: 阎良区2017年一般公共预算支出情况表—按功能科目分类
M3: 单位：万元
A4: 科目编码 | B4: 科目名称 | C4: 2017年支出预算执行数 | K4: 2017年年初预算数 | L4: 2016年决算数 | M4: 2017年执行比例
C5: 执行数小计 | D5: 区本级财力支出 | E5: 上级转移支付支出 | G5: 动用上年结余 | H5: 调入资金 | I5: 债务收入 | J5: 调入稳定调节基金
E6: 返还及一般转移支付 | F6: 专项转移支付 | M6: 占预算％ | N6: 与上年比+－％
B7: 一般公共预算支出 | C7: 239,536 | D7: 118,939 | E7: 30,449 | F7: 64,142 | G7: 4,500 | H7: 17,049 | I7: 4,000 | J7: 457 | K7: 142,430 | L7: 230,682 | M7: 168.2% | N7: 3.8%
A8: 201 | B8: 一般公共服务支出 | C8: 16,612 | D8: 16,215 | E8: 0 | F8: 397 | H8: 0 | I8: 0 | J8: 0 | K8: 14,500 | L8: 14,333 | M8: 114.6% | N8: 15.9%
A9: 20101 | B9: 人大事务 | C9: 624 | D9: 624 | E9: 0 | F9: 0 | H9: 0 | I9: 0 | J9: 0 | K9: 490 | L9: 579 | M9: 127.3% | N9: 7.8%
A10: 2010101 | B10: 行政运行 | C10: 577 | D10: 577 | K10: 434 | L10: 474 | M10: 132.9% | N10: 21.7%
A11: 2010102 | B11: 一般行政管理事务 | C11: 8 | D11: 8 | K11: 9 | L11: 9 | M11: 88.9% | N11: -11.1%
A12: 2010103 | B12: 机关服务 | C12: 0 | D12: 0
A13: 2010104 | B13: 人大会议 | C13: 18 | D13: 18 | K13: 24 | L13: 81 | M13: 75.0% | N13: -77.8%
A14: 2010105 | B14: 人大立法 | C14: 0 | D14: 0
A15: 2010106 | B15: 人大监督 | C15: 4 | D15: 4 | K15: 4 | L15: 4 | M15: 100.0% | N15: 0.0%
A16: 2010107 | B16: 人大代表履职能力提升 | C16: 0 | D16: 0 | K16: 17 | M16: 0.0%
A17: 2010108 | B17: 代表工作 | C17: 16 | D17: 16 | L17: 8 | N17: 100.0%
A18: 2010109 | B18: 人大信访工作 | C18: 1 | D18: 1 | K18: 2 | L18: 2 | M18: 50.0% | N18: -50.0%
A19: 2010150 | B19: 事业运行 | C19: 0 | D19: 0
A20: 2010199 | B20: 其他人大事务支出 | C20: 0 | D20: 0 | L20: 1 | N20: -100.0%
A21: 20102 | B21: 政协事务 | C21: 560 | D21: 560 | E21: 0 | F21: 0 | H21: 0 | I21: 0 | J21: 0 | K21: 395 | L21: 412 | M21: 141.8% | N21: 35.9%
A22: 2010201 | B22: 行政运行 | C22: 484 | D22: 484 | K22: 364 | L22: 358 | M22: 133.0% | N22: 35.2%
A23: 2010202 | B23: 一般行政管理事务 | C23: 51 | D23: 51 | K23: 6 | L23: 7 | M23: 850.0% | N23: 628.6%
A24: 2010203 | B24: 机关服务 | C24: 0 | D24: 0
A25: 2010204 | B25: 政协会议 | C25: 15 | D25: 15 | K25: 15 | L25: 15 | M25: 100.0% | N25: 0.0%
A26: 2010205 | B26: 委员视察 | C26: 2 | D26: 2 | K26: 2 | L26: 1 | M26: 100.0% | N26: 100.0%
A27: 2010206 | B27: 参政议政 | C27: 8 | D27: 8 | K27: 8 | L27: 8 | M27: 100.0% | N27: 0.0%
A28: 2010250 | B28: 事业运行 | C28: 0 | D28: 0
A29: 2010299 | B29: 其他政协事务支出 | C29: 0 | D29: 0 | L29: 23 | N29: -100.0%
A30: 20103 | B30: 政府办公厅(室)及相关机构事务 | C30: 6,398 | D30: 6,388 | E30: 0 | F30: 10 | H30: 0 | I30: 0 | J30: 0 | K30: 7,404 | L30: 5,466 | M30: 86.4% | N30: 17.1%
A31: 2010301 | B31: 行政运行 | C31: 4,639 | D31: 4,639 | K31: 6,520 | L31: 3,865 | M31: 71.2% | N31: 20.0%
A32: 2010302 | B32: 一般行政管理事务 | C32: 589 | D32: 589 | K32: 435 | L32: 532 | M32: 135.4% | N32: 10.7%
A33: 2010303 | B33: 机关服务 | C33: 100 | D33: 100 | K33: 100 | L33: 100 | M33: 100.0% | N33: 0.0%
A34: 2010304 | B34: 专项服务 | C34: 0 | D34: 0
A35: 2010305 | B35: 专项业务活动 | C35: 0 | D35: 0
A36: 2010306 | B36: 政务公开审批 | C36: 0 | D36: 0
A37: 2010307 | B37: 法制建设 | C37: 0 | D37: 0
A38: 2010308 | B38: 信访事务 | C38: 100 | D38: 100 | K38: 70 | L38: 83 | M38: 142.9% | N38: 20.5%
A39: 2010309 | B39: 参事事务 | C39: 0 | D39: 0
A40: 2010350 | B40: 事业运行 | C40: 175 | D40: 175 | K40: 59 | L40: 157 | M40: 296.6% | N40: 11.5%
A41: 2010399 | B41: 其他政府办公厅(室)及相关机构事务支出 | C41: 795 | D41: 785 | F41: 10 | K41: 220 | L41: 729 | M41: 361.4% | N41: 9.1%
A42: 20104 | B42: 发展与改革事务 | C42: 1,055 | D42: 955 | E42: 0 | F42: 100 | H42: 0 | I42: 0 | J42: 0 | K42: 520 | L42: 772 | M42: 202.9% | N42: 36.7%
A43: 2010401 | B43: 行政运行 | C43: 354 | D43: 354 | K43: 437 | L43: 279 | M43: 81.0% | N43: 26.9%
A44: 2010402 | B44: 一般行政管理事务 | C44: 504 | D44: 504 | L44: 415 | N44: 21.4%
A45: 2010403 | B45: 机关服务 | C45: 0 | D45: 0
A46: 2010404 | B46: 战略规划与实施 | C46: 20 | D46: 20 | K46: 20 | L46: 20 | M46: 100.0% | N46: 0.0%
A47: 2010405 | B47: 日常经济运行调节 | C47: 0 | D47: 0
A48: 2010406 | B48: 社会事业发展规划 | C48: 10 | D48: 10 | K48: 10 | L48: 10 | M48: 100.0% | N48: 0.0%
A49: 2010407 | B49: 经济体制改革研究 | C49: 0 | D49: 0
A50: 2010408 | B50: 物价管理 | C50: 20 | D50: 20 | L50: 18 | N50: 11.1%
A51: 2010409 | B51: 应对气候变化管理事务 | C51: 0 | D51: 0 | K51: 21 | M51: 0.0%
A52: 2010450 | B52: 事业运行 | C52: 47 | D52: 47 | K52: 32 | L52: 30 | M52: 146.9% | N52: 56.7%
A53: 2010499 | B53: 其他发展与改革事务支出 | C53: 100 | D53: 0 | F53: 100
A54: 20105 | B54: 统计信息事务 | C54: 319 | D54: 319 | E54: 0 | F54: 0 | H54: 0 | I54: 0 | J54: 0 | K54: 231 | L54: 376 | M54: 138.1% | N54: -15.2%
A55: 2010501 | B55: 行政运行 | C55: 239 | D55: 239 | K55: 197 | L55: 194 | M55: 121.3% | N55: 23.2%
A56: 2010502 | B56: 一般行政管理事务 | C56: 46 | D56: 46
A57: 2010503 | B57: 机关服务 | C57: 0 | D57: 0
A58: 2010504 | B58: 信息事务 | C58: 9 | D58: 9 | K58: 9 | L58: 14 | M58: 100.0% | N58: -35.7%
A59: 2010505 | B59: 专项统计业务 | C59: 14 | D59: 14 | K59: 14 | L59: 14 | M59: 100.0% | N59: 0.0%
A60: 2010506 | B60: 统计管理 | C60: 3 | D60: 3 | K60: 3 | L60: 3 | M60: 100.0% | N60: 0.0%
A61: 2010507 | B61: 专项普查活动 | C61: 0 | D61: 0 | L61: 55 | N61: -100.0%
A62: 2010508 | B62: 统计抽样调查 | C62: 8 | D62: 8 | K62: 8 | L62: 96 | M62: 100.0% | N62: -91.7%
A63: 2010550 | B63: 事业运行 | C63: 0 | D63: 0
A64: 2010599 | B64: 其他统计信息事务支出 | C64: 0 | D64: 0
A65: 20106 | B65: 财政事务 | C65: 1,368 | D65: 1,342 | E65: 0 | F65: 26 | H65: 0 | I65: 0 | J65: 0 | K65: 905 | L65: 1,190 | M65: 151.2% | N65: 15.0%
A66: 2010601 | B66: 行政运行 | C66: 637 | D66: 637 | K66: 560 | L66: 523 | M66: 113.8% | N66: 21.8%
A67: 2010602 | B67: 一般行政管理事务 | C67: 123 | D67: 123 | K67: 137 | L67: 88 | M67: 89.8% | N67: 39.8%
A68: 2010603 | B68: 机关服务 | C68: 35 | D68: 35 | K68: 35 | L68: 29 | M68: 100.0% | N68: 20.7%
A69: 2010604 | B69: 预算改革业务 | C69: 0 | D69: 0 | K69: 2 | L69: 1 | M69: 0.0% | N69: -100.0%
A70: 2010605 | B70: 财政国库业务 | C70: 0 | D70: 0
A71: 2010606 | B71: 财政监察 | C71: 26 | D71: 26 | K71: 30 | L71: 31 | M71: 86.7% | N71: -16.1%
A72: 2010607 | B72: 信息化建设 | C72: 65 | D72: 65 | K72: 77 | L72: 119 | M72: 84.4% | N72: -45.4%
A73: 2010608 | B73: 财政委托业务支出 | C73: 0 | D73: 0
A74: 2010650 | B74: 事业运行 | C74: 396 | D74: 396 | L74: 370 | N74: 7.0%
A75: 2010699 | B75: 其他财政事务支出 | C75: 86 | D75: 60 | F75: 26 | K75: 64 | L75: 29 | M75: 134.4% | N75: 196.6%
A76: 20107 | B76: 税收事务 | C76: 1,921 | D76: 1,921 | E76: 0 | F76: 0 | H76: 0 | I76: 0 | J76: 0 | K76: 1,503 | L76: 1,733 | M76: 127.8% | N76: 10.8%
A77: 2010701 | B77: 行政运行 | C77: 24 | D77: 24 | K77: 167 | L77: 12 | M77: 14.4% | N77: 100.0%
A78: 2010702 | B78: 一般行政管理事务 | C78: 1,897 | D78: 1,897 | K78: 1,336 | L78: 1,721 | M78: 142.0% | N78: 10.2%
A79: 2010703 | B79: 机关服务 | D79: 0
A80: 2010704 | B80: 税务办案 | D80: 0
A81: 2010705 | B81: 税务登记证及发票管理 | D81: 0
A82: 2010706 | B82: 代扣代收代征税款手续费 | D82: 0
A83: 20108 | B83: 审计事务 | C83: 235 | D83: 225 | E83: 0 | F83: 10 | H83: 0 | I83: 0 | J83: 0 | K83: 230 | L83: 207 | M83: 102.2% | N83: 13.5%
A84: 2010801 | B84: 行政运行 | C84: 138 | D84: 138 | K84: 128 | L84: 131 | M84: 107.8% | N84: 5.3%
A85: 2010802 | B85: 一般行政管理事务 | C85: 2 | D85: 2 | K85: 2 | L85: 3 | M85: 100.0% | N85: -33.3%
A86: 2010803 | B86: 机关服务 | C86: 0 | D86: 0
A87: 2010804 | B87: 审计业务 | C87: 41 | D87: 33 | F87: 8 | K87: 80 | L87: 55 | M87: 51.3% | N87: -25.5%
A88: 2010805 | B88: 审计管理 | C88: 0 | D88: 0
A89: 2010806 | B89: 信息化建设 | C89: 15 | D89: 15 | K89: 20 | L89: 10 | M89: 75.0% | N89: 50.0%
A90: 2010850 | B90: 事业运行 | C90: 37 | D90: 37
A91: 2010899 | B91: 其他审计事务支出 | C91: 2 | D91: 0 | F91: 2 | L91: 8 | N91: -75.0%
A92: 20110 | B92: 人力资源事务 | C92: 94 | D92: 27 | E92: 0 | F92: 67 | H92: 0 | I92: 0 | J92: 0 | K92: 32 | L92: 69 | M92: 293.8% | N92: 36.2%
A93: 2011001 | B93: 行政运行 | C93: 1 | D93: 1
A94: 2011002 | B94: 一般行政管理事务 | D94: 0
A95: 2011003 | B95: 机关服务 | D95: 0
A96: 2011004 | B96: 政府特殊津贴 | D96: 0 | K96: 1 | M96: 0.0%
A97: 2011005 | B97: 资助留学回国人员 | D97: 0
A98: 2011006 | B98: 军队转业干部安置 | C98: 1 | D98: 1 | K98: 1 | L98: 1 | M98: 100.0% | N98: 0.0%
A99: 2011007 | B99: 博士后日常经费 | C99: 92 | D99: 92
A100: 2011099 | B100: 其他人力资源事务支出 | D100: -67 | F100: 67 | K100: 30 | L100: 68 | M100: 0.0% | N100: -100.0%
A101: 20111 | B101: 纪检监察事务 | C101: 735 | D101: 735 | E101: 0 | F101: 0 | H101: 0 | I101: 0 | J101: 0 | K101: 535 | L101: 492 | M101: 137.4% | N101: 49.4%
A102: 2011101 | B102: 行政运行 | C102: 548 | D102: 548 | K102: 463 | L102: 390 | M102: 118.4% | N102: 40.5%
A103: 2011102 | B103: 一般行政管理事务 | C103: 143 | D103: 143 | K103: 52 | L103: 60 | M103: 275.0% | N103: 138.3%
A104: 2011103 | B104: 机关服务 | C104: 0 | D104: 0
A105: 2011104 | B105: 大案要案查处 | C105: 20 | D105: 20 | K105: 20 | L105: 20 | M105: 100.0% | N105: 0.0%
A106: 2011105 | B106: 派驻派出机构 | C106: 0 | D106: 0
A107: 2011106 | B107: 中央巡视 | C107: 0 | D107: 0
A108: 2011150 | B108: 事业运行 | C108: 24 | D108: 24 | L108: 22 | N108: 9.1%
A109: 2011199 | B109: 其他纪检监察事务支出 | C109: 0 | D109: 0
A110: 20113 | B110: 商贸事务 | C110: 414 | D110: 414 | E110: 0 | F110: 0 | H110: 0 | I110: 0 | J110: 0 | K110: 124 | L110: 607 | M110: 333.9% | N110: -31.8%
A111: 2011301 | B111: 行政运行 | C111: 264 | D111: 264 | L111: 526 | N111: -49.8%
A112: 2011302 | B112: 一般行政管理事务 | C112: 0 | D112: 0
A113: 2011303 | B113: 机关服务 | C113: 0 | D113: 0
A114: 2011304 | B114: 对外贸易管理 | C114: 0 | D114: 0
A115: 2011305 | B115: 国际经济合作 | C115: 0 | D115: 0
A116: 2011306 | B116: 外资管理 | C116: 0 | D116: 0
A117: 2011307 | B117: 国内贸易管理 | C117: 0 | D117: 0
A118: 2011308 | B118: 招商引资 | C118: 114 | D118: 114 | K118: 124 | L118: 32 | M118: 91.9% | N118: 256.3%
A119: 2011350 | B119: 事业运行 | C119: 36 | D119: 36 | L119: 37 | N119: -2.7%
A120: 2011399 | B120: 其他商贸事务支出 | C120: 0 | D120: 0 | L120: 12 | N120: -100.0%
A121: 20115 | B121: 工商行政管理事务 | C121: 29 | D121: 29 | E121: 0 | F121: 0 | H121: 0 | I121: 0 | J121: 0 | K121: 1 | L121: 32 | M121: 2900.0% | N121: -9.4%
A122: 2011501 | B122: 行政运行 | C122: 14 | D122: 14 | K122: 1 | L122: 14 | M122: 1400.0% | N122: 0.0%
A123: 2011502 | B123: 一般行政管理事务 | C123: 15 | D123: 15 | L123: 18 | N123: -16.7%
A124: 20117 | B124: 质量技术监督与检验检疫事务 | C124: 10 | D124: 10 | E124: 0 | F124: 0 | H124: 0 | I124: 0 | J124: 0 | K124: 2 | L124: 51 | M124: 500.0% | N124: -80.4%
A125: 2011701 | B125: 行政运行 | C125: 10 | D125: 10 | K125: 2 | L125: 7 | M125: 500.0% | N125: 42.9%
A126: 2011702 | B126: 一般行政管理事务 | D126: 0 | L126: 44 | N126: -100.0%
A127: 20123 | B127: 民族事务 | D127: 0 | F127: 0 | K127: 0
A128: 2012301 | B128: 行政运行 | D128: 0
A129: 2012399 | B129: 其他民族事务支出 | D129: 0
A130: 20126 | B130: 档案事务 | C130: 253 | D130: 253 | E130: 0 | F130: 0 | H130: 0 | I130: 0 | J130: 0 | K130: 228 | L130: 146 | M130: 111.0% | N130: 73.3%
A131: 2012601 | B131: 行政运行 | C131: 228 | D131: 228 | K131: 211 | L131: 133 | M131: 108.1% | N131: 71.4%
A132: 2012602 | B132: 一般行政管理事务 | C132: 18 | D132: 18 | K132: 10 | L132: 6 | M132: 180.0% | N132: 200.0%
A133: 2012603 | B133: 机关服务 | C133: 0 | D133: 0
A134: 2012604 | B134: 档案馆 | C134: 7 | D134: 7 | K134: 7 | L134: 7 | M134: 100.0% | N134: 0.0%
A135: 2012699 | B135: 其他档案事务支出 | C135: 0 | D135: 0
A136: 20128 | B136: 民主党派及工商联事务 | C136: 64 | D136: 64 | E136: 0 | F136: 0 | H136: 0 | I136: 0 | J136: 0 | K136: 45 | L136: 45 | M136: 142.2% | N136: 42.2%
A137: 2012801 | B137: 行政运行 | C137: 37 | D137: 37 | K137: 32 | L137: 38 | M137: 115.6% | N137: -2.6%
A138: 2012802 | B138: 一般行政管理事务 | C138: 27 | D138: 27 | K138: 13 | L138: 7 | M138: 207.7% | N138: 285.7%
A139: 2012803 | B139: 机关服务 | C139: 0 | D139: 0
A140: 2012804 | B140: 参政议政 | C140: 0 | D140: 0
A141: 2012850 | B141: 事业运行 | C141: 0 | D141: 0
A142: 2012899 | B142: 其他民主党派及工商联事务支出 | C142: 0 | D142: 0
A143: 20129 | B143: 群众团体事务 | C143: 210 | D143: 210 | E143: 0 | F143: 0 | H143: 0 | I143: 0 | J143: 0 | K143: 172 | L143: 208 | M143: 122.1% | N143: 1.0%
A144: 2012901 | B144: 行政运行 | C144: 148 | D144: 148 | K144: 119 | L144: 121 | M144: 124.4% | N144: 22.3%
A145: 2012902 | B145: 一般行政管理事务 | C145: 62 | D145: 62 | K145: 53 | L145: 74 | M145: 117.0% | N145: -16.2%
A146: 2012903 | B146: 机关服务 | C146: 0 | D146: 0
A147: 2012904 | B147: 厂务公开 | C147: 0 | D147: 0
A148: 2012905 | B148: 工会疗养休养 | C148: 0 | D148: 0
A149: 2012950 | B149: 事业运行 | C149: 0 | D149: 0
A150: 2012999 | B150: 其他群众团体事务支出 | C150: 0 | D150: 0 | L150: 13 | N150: -100.0%
A151: 20131 | B151: 党委办公厅(室)及相关机构事务 | C151: 522 | D151: 522 | E151: 0 | F151: 0 | H151: 0 | I151: 0 | J151: 0 | K151: 434 | L151: 503 | M151: 120.3% | N151: 3.8%
A152: 2013101 | B152: 行政运行 | C152: 374 | D152: 374 | K152: 293 | L152: 307 | M152: 127.6% | N152: 21.8%
A153: 2013102 | B153: 一般行政管理事务 | C153: 91 | D153: 91 | K153: 91 | L153: 146 | M153: 100.0% | N153: -37.7%
A154: 2013103 | B154: 机关服务 | C154: 50 | D154: 50 | K154: 50 | L154: 50 | M154: 100.0% | N154: 0.0%
A155: 2013105 | B155: 专项业务 | C155: 0 | D155: 0
A156: 2013150 | B156: 事业运行 | C156: 7 | D156: 7
A157: 2013199 | B157: 其他党委办公厅(室)及相关机构事务支出 | C157: 0 | D157: 0
A158: 20132 | B158: 组织事务 | C158: 543 | D158: 539 | E158: 0 | F158: 4 | H158: 0 | I158: 0 | J158: 0 | K158: 336 | L158: 358 | M158: 161.6% | N158: 51.7%
A159: 2013201 | B159: 行政运行 | C159: 278 | D159: 278 | K159: 213 | L159: 247 | M159: 130.5% | N159: 12.6%
A160: 2013202 | B160: 一般行政管理事务 | C160: 264 | D160: 260 | F160: 4 | K160: 123 | L160: 91 | M160: 214.6% | N160: 190.1%
A161: 2013203 | B161: 机关服务 | C161: 0 | D161: 0
A162: 2013250 | B162: 事业运行 | C162: 1 | D162: 1
A163: 2013299 | B163: 其他组织事务支出 | C163: 0 | D163: 0 | L163: 20 | N163: -100.0%
A164: 20133 | B164: 宣传事务 | C164: 466 | D164: 410 | E164: 0 | F164: 56 | H164: 0 | I164: 0 | J164: 0 | K164: 331 | L164: 361 | M164: 140.8% | N164: 29.1%
A165: 2013301 | B165: 行政运行 | C165: 144 | D165: 144 | K165: 144 | L165: 105 | M165: 100.0% | N165: 37.1%
A166: 2013302 | B166: 一般行政管理事务 | C166: 178 | D166: 143 | F166: 35 | K166: 116 | L166: 154 | M166: 153.4% | N166: 15.6%
A167: 2013303 | B167: 机关服务 | C167: 0 | D167: 0
A168: 2013350 | B168: 事业运行 | C168: 93 | D168: 93 | K168: 41 | L168: 77 | M168: 226.8% | N168: 20.8%
A169: 2013399 | B169: 其他宣传事务支出 | C169: 51 | D169: 30 | F169: 21 | K169: 30 | L169: 25 | M169: 170.0% | N169: 104.0%
A170: 20134 | B170: 统战事务 | C170: 74 | D170: 74 | E170: 0 | F170: 0 | H170: 0 | I170: 0 | J170: 0 | K170: 49 | L170: 62 | M170: 151.0% | N170: 19.4%
A171: 2013401 | B171: 行政运行 | C171: 52 | D171: 52 | K171: 34 | L171: 37 | M171: 152.9% | N171: 40.5%
A172: 2013402 | B172: 一般行政管理事务 | C172: 15 | D172: 15 | K172: 15 | L172: 16 | M172: 100.0% | N172: -6.3%
A173: 2013403 | B173: 机关服务 | C173: 0 | D173: 0
A174: 2013450 | B174: 事业运行 | C174: 7 | D174: 7 | L174: 6 | N174: 16.7%
A175: 2013499 | B175: 其他统战事务支出 | C175: 0 | D175: 0 | L175: 3 | N175: -100.0%
A176: 20135 | B176: 对外联络事务 | D176: 0 | F176: 0 | K176: 0 | L176: 35 | N176: -100.0%
A177: 2013501 | B177: 行政运行 | D177: 0 | L177: 35 | N177: -100.0%
A178: 2013502 | B178: 一般行政管理事务 | D178: 0
A179: 2013503 | B179: 机关服务 | D179: 0
A180: 2013550 | B180: 事业运行 | D180: 0
A181: 2013599 | B181: 其他对外联络事务支出 | D181: 0
A182: 20136 | B182: 其他共产党事务支出(款) | C182: 594 | D182: 594 | E182: 0 | F182: 0 | H182: 0 | I182: 0 | J182: 0 | K182: 533 | L182: 503 | M182: 111.4% | N182: 18.1%
A183: 2013601 | B183: 行政运行 | C183: 449 | D183: 449 | K183: 371 | L183: 345 | M183: 121.0% | N183: 30.1%
A184: 2013602 | B184: 一般行政管理事务 | C184: 145 | D184: 145 | K184: 160 | L184: 155 | M184: 90.6% | N184: -6.5%
A185: 2013603 | B185: 机关服务 | C185: 0 | D185: 0
A186: 2013650 | B186: 事业运行 | C186: 0 | D186: 0 | K186: 2 | M186: 0.0%
A187: 2013699 | B187: 其他共产党事务支出(项) | C187: 0 | D187: 0 | L187: 3 | N187: -100.0%
A188: 20199 | B188: 其他一般公共服务支出(款) | C188: 124 | D188: 0 | E188: 0 | F188: 124 | H188: 0 | I188: 0 | J188: 0 | K188: 0 | L188: 126 | N188: -1.6%
A189: 2019901 | B189: 国家赔偿费用支出 | C189: 0 | D189: 0
A190: 2019999 | B190: 其他一般公共服务支出(项) | C190: 124 | D190: 0 | F190: 124 | L190: 126 | N190: -1.6%
A191: 204 | B191: 公共安全支出 | C191: 13,507 | D191: 9,801 | E191: 1,131 | F191: 2,575 | H191: 0 | I191: 0 | J191: 0 | K191: 8,670 | L191: 11,313 | M191: 155.8% | N191: 19.4%
A192: 20401 | B192: 武装警察 | C192: 98 | D192: 98 | E192: 0 | F192: 0 | H192: 0 | I192: 0 | J192: 0 | K192: 116 | L192: 114 | M192: 84.5% | N192: -14.0%
A193: 2040101 | B193: 内卫 | D193: 0
A194: 2040102 | B194: 边防 | D194: 0
A195: 2040103 | B195: 消防 | C195: 98 | D195: 98 | K195: 116 | L195: 114 | M195: 84.5% | N195: -14.0%
A196: 2040109 | B196: 海警 | D196: 0
A197: 2040199 | B197: 其他武装警察支出 | D197: 0
A198: 20402 | B198: 公安 | C198: 10,293 | D198: 7,645 | E198: 632 | F198: 2,016 | H198: 0 | I198: 0 | J198: 0 | K198: 6,795 | L198: 8,256 | M198: 151.5% | N198: 24.7%
A199: 2040201 | B199: 行政运行 | C199: 5,997 | D199: 5,997 | K199: 5,270 | L199: 5,010 | M199: 113.8% | N199: 19.7%
A200: 2040202 | B200: 一般行政管理事务 | C200: 884 | D200: 884 | K200: 660 | L200: 929 | M200: 133.9% | N200: -4.8%
... 707 more rows

Sheet 一般本级支出（经济分类）
A1: 附表4
K2: 单位：万元 | U2: 单位：万元 | AD2: 单位：万元 | AM2: 单位：万元 | AY2: 单位：万元 | BI2: 单位：万元 | BS2: 单位：万元
A3: 项 目 | B3: 合计 | C3: 工资福利支出 | M3: 商品和服务支出 | W3: 商品和服务支出 | AF3: 商品和服务支出 | AO3: 对个人和家庭的补助 | BA3: 基本建设支出 | BC3: 其他资本性支出 | BK3: 其他资本性支出 | BN3: 对企事业单位的补贴 | BR3: 债务利息支出
C4: 小计 | D4: 基本工资 | E4: 津贴补贴 | F4: 奖金 | G4: 其他社会保障缴费 | H4: 伙食补助费 | I4: 绩效工资 | J4: 机关事业单位基本养老保险缴费 | K4: 职业年金缴费 | L4: 其他工资福利支出 | M4: 小计 | N4: 办公费 | O4: 印刷费 | P4: 咨询费 | Q4: 手续费 | R4: 水费 | S4: 电费 | T4: 邮电费 | U4: 取暖费 | V4: 物业管理费 | W4: 差旅费 | X4: 因公出国（境）费用 | Y4: 维修（护）费 | Z4: 租赁费 | AA4: 会议费 | AB4: 培训费 | AC4: 公务接待费 | AD4: 专用材料费 | AE4: 被装购置费 | AF4: 专用燃料费 | AG4: 劳务费 | AH4: 委托业务费 | AI4: 工会经费 | AJ4: 福利费 | AK4: 公务用车运行维护费 | AL4: 其他交通费用 | AM4: 税金及附加费用 | AN4: 其他商品和服务支出 | AO4: 小计 | AP4: 离休费 | AQ4: 退休费 | AR4: 抚恤金 | AS4: 生活补助 | AT4: 救济费 | AU4: 医疗费 | AV4: 助学金 | AW4: 奖励金 | AX4: 住房公积金 | AY4: 采暖补贴 | AZ4: 其他对个人和家庭的补助支出 | BA4: 小计 | BB4: 房屋建筑物购建 | BC4: 小计 | BD4: 房屋建筑物购建 | BE4: 办公设备购置 | BF4: 专用设备购置 | BG4: 基础设施建设 | BH4: 大型修缮 | BI4: 信息网络及软件购置更新 | BJ4: 土地补偿 | BK4: 拆迁补偿 | BL4: 公务用车购置 | BM4: 其他资本性支出 | BN4: 小计 | BO4: 企业政策性补贴 | BP4: 事业单位补贴 | BQ4: 财政贴息 | BR4: 小计 | BS4: 国内债务付息 | BT4: 国外债务付息
A7: 【201】一般公共服务支出 | B7: =SUM(C7,M7,AO7,BA7,BN7,BR7,,BC7) -> 16,612 | C7: =SUM(D7:L7) -> 6,687 | D7: 2,144 | E7: 1,996 | F7: 2,282 | G7: 39 | I7: 196 | J7: 23 | K7: 5 | L7: 3 | M7: =SUM(N7:AN7) -> 5,799 | N7: 771 | O7: 229 | P7: 36 | R7: 13 | S7: 116 | T7: 198 | V7: 57 | W7: 171 | Y7: 190 | Z7: 155 | AA7: 89 | AB7: 127 | AC7: 25 | AD7: 1 | AG7: 612 | AH7: 287 | AI7: 31 | AK7: 124 | AL7: 479 | AN7: =59.548236+2028 -> 2,088 | AO7: =SUM(AP7:AZ7) -> 3,049 | AR7: 125 | AS7: 2,062 | AT7: 11 | AW7: 187 | AX7: 612 | AY7: 52 | BC7: =SUM(BD7:BM7) -> 577 | BE7: 72 | BF7: 49 | BG7: 95 | BH7: 102 | BI7: 241 | BL7: 18 | BN7: =SUM(BO7:BQ7) -> 500 | BO7: 500
A8: 【204】公共安全支出 | B8: 13,507 | C8: =SUM(D8:L8) -> 6,777 | D8: 2,530 | E8: 1,657 | F8: 2,009 | G8: 12 | I8: 30 | J8: 3 | L8: 535 | M8: =SUM(N8:AN8) -> 3,723 | N8: 1,781 | O8: 12 | R8: 4 | S8: 31 | T8: 55 | V8: 13 | W8: 66 | Y8: 174 | Z8: 210 | AB8: 44 | AC8: 2 | AE8: 33 | AG8: 194 | AI8: 23 | AJ8: 2 | AK8: 198 | AL8: 369 | AN8: =220.235+291 -> 511 | AO8: =SUM(AP8:AZ8) -> 539 | AR8: 50 | AS8: 17 | AT8: 2 | AU8: 6 | AX8: 440 | AY8: 23 | AZ8: 1 | BA8: =SUM(BB8) -> 452 | BB8: 452 | BC8: 2,016 | BE8: 120 | BF8: 221 | BG8: 1,675
A9: 【205】教育支出 | B9: 37,148 | C9: 17,466 | D9: 8,565 | E9: 2,463 | F9: 140 | G9: 788 | I9: 5,317 | J9: 124 | K9: 69 | M9: =SUM(N9:AN9) -> 6,533 | N9: 1,787 | O9: 213 | P9: 3 | Q9: 2 | R9: 97 | S9: 375 | T9: 109 | V9: 561 | W9: 70 | X9: 9 | Y9: 601 | Z9: 81 | AA9: 43 | AB9: 318 | AC9: 3 | AD9: 176 | AG9: 1,533 | AH9: 169 | AI9: 276 | AJ9: 4 | AK9: 1 | AL9: 30 | AN9: =109.948813-37 -> 73 | AO9: =SUM(AP9:AZ9) -> 3,341 | AR9: 254 | AS9: 441 | AT9: 5 | AU9: 0 | AV9: 591 | AW9: 41 | AX9: 1,837 | AY9: 165 | AZ9: 6 | BC9: 9,808 | BD9: 4,073 | BE9: 836 | BF9: 1,904 | BG9: 1,531 | BH9: 1,107 | BI9: 359
A10: 【206】科学技术支出 | B10: 1,310 | C10: 80 | D10: 42 | E10: 29 | G10: 3 | I10: 3 | K10: 3 | M10: 1,221 | N10: =1982.5-789 -> 1,194 | W10: 3 | AG10: 17 | AL10: 7 | AO10: 9 | AX10: 9
A11: 【207】文化体育与传媒支出 | B11: 1,485 | C11: 624 | D11: 233 | E11: 209 | F11: 101 | G11: 11 | I11: 64 | J11: 5 | K11: 1 | M11: 731 | N11: 86 | O11: 7 | R11: 1 | S11: 8 | T11: 1 | V11: 36 | W11: 8 | Y11: 26 | AA11: 1 | AB11: 5 | AC11: 2 | AG11: 76 | AH11: 194 | AI11: 8 | AK11: 6 | AL11: 9 | AN11: =50.753639+206 -> 257 | AO11: 96 | AR11: 3 | AS11: 20 | AX11: 68 | AY11: 5 | BC11: =SUM(BD11:BM11) -> 34 | BE11: 1 | BF11: 28 | BM11: 5
A12: 【208】社会保障和就业支出 | B12: 34,873 | C12: 1,569 | D12: 483 | E12: 490 | F12: 423 | G12: 97 | I12: 54 | J12: 15 | K12: 7 | M12: 1,212 | N12: 538 | O12: 25 | P12: 10 | R12: 2 | S12: 15 | T12: 8 | V12: 13 | W12: 19 | Y12: 34 | Z12: 5 | AA12: 16 | AB12: 20 | AC12: 5 | AG12: 71 | AH12: 322 | AI12: 16 | AK12: 15 | AL12: 75 | AN12: 5 | AO12: 31,828 | AP12: 295 | AQ12: 12,619 | AR12: 88 | AS12: 12,360 | AU12: 105 | AW12: 14 | AX12: 70 | AY12: 10 | AZ12: 6,266 | BC12: 264 | BD12: 50 | BE12: 10 | BG12: 204
A13: 【210】医疗卫生与计划生育支出 | B13: 24,420 | C13: 4,582 | D13: 1,819 | E13: 1,142 | F13: 232 | G13: 233 | I13: 1,084 | J13: 39 | K13: 18 | L13: 16 | M13: 6,328 | N13: 718 | O13: 128 | P13: 1 | R13: 8 | S13: 71 | T13: 16 | V13: 49 | W13: 32 | Y13: 198 | Z13: 38 | AA13: 1 | AB13: 20 | AC13: 12 | AD13: 2,370 | AG13: 1,741 | AH13: 59 | AI13: 20 | AJ13: 42 | AK13: 65 | AL13: 13 | AN13: 727 | AO13: 11,390 | AR13: 54 | AS13: 122 | AU13: 10,698 | AW13: 163 | AX13: 308 | AY13: 46 | BC13: 2,119 | BE13: 68 | BF13: 46 | BG13: 2,005
A14: 【211】节能环保支出 | B14: 1,819 | M14: 611 | AH14: 395 | AN14: 216 | BC14: 1,183 | BH14: 50 | BM14: 1,133 | BN14: =SUM(BO14:BQ14) -> 25 | BO14: 25
A15: 【212】城乡社区支出 | B15: 64,161 | C15: =SUM(D15:L15) -> 1,777 | D15: 727 | E15: 388 | F15: 215 | G15: 45 | I15: 375 | J15: 23 | K15: 3 | M15: 13,046 | N15: 292 | O15: 6 | R15: 6 | S15: 257 | T15: 9 | V15: 80 | W15: 23 | Y15: 9,124 | Z15: 21 | AA15: 1 | AB15: 4 | AC15: 1 | AG15: 619 | AH15: 2,420 | AI15: 9 | AK15: 22 | AL15: 151 | AO15: =SUM(AP15:AZ15) -> 233 | AR15: 4 | AS15: 39 | AX15: 187 | AY15: 3 | BC15: 48,985 | BE15: 2 | BG15: 44,673 | BI15: 260 | BK15: 60 | BM15: 3,990 | BN15: 120 | BO15: 120
A16: 【213】农林水支出 | B16: 29,187 | C16: 2,107 | D16: 884 | E16: 673 | F16: 176 | G16: 120 | I16: 227 | J16: 17 | K16: 9 | M16: 10,741 | N16: 1,123 | O16: 27 | P16: 1 | Q16: 1 | R16: 8 | S16: 23 | T16: 10 | V16: 7 | W16: 26 | Y16: 27 | Z16: 9 | AA16: 2 | AB16: 307 | AC16: 13 | AD16: 6,105 | AG16: 1,062 | AH16: 1,107 | AI16: 13 | AK16: 13 | AL16: 34 | AN16: =8.607734+816 -> 825 | AO16: 415 | AR16: 26 | AS16: 177 | AU16: 0 | AX16: 200 | AY16: 12 | BC16: 15,925 | BE16: 6 | BF16: 1 | BG16: 12,587 | BJ16: 300 | BM16: 3,031
A17: 【214】交通运输支出 | B17: 1,791 | C17: 341 | D17: 126 | E17: 61 | F17: 51 | G17: 40 | I17: 63 | M17: 98 | N17: 25 | O17: 1 | R17: 2 | S17: 3 | T17: 1 | W17: 3 | Y17: 4 | AG17: 31 | AI17: 3 | AK17: 5 | AN17: 20 | AO17: 2 | AS17: 2 | BC17: 1,292 | BE17: 11 | BG17: 1,281 | BN17: =SUM(BO17:BQ17) -> 58 | BO17: 58
A18: 【215】资源勘探信息等支出 | B18: 6,189 | C18: 698 | D18: 277 | E18: 214 | F18: 188 | G18: 7 | I18: 6 | J18: 2 | K18: 1 | L18: 3 | M18: 521 | N18: 46 | O18: 16 | P18: 5 | R18: 3 | S18: 9 | T18: 6 | V18: 16 | W18: 7 | Y18: 47 | Z18: 17 | AB18: 22 | AC18: 2 | AD18: 1 | AG18: 70 | AH18: 165 | AI18: 1 | AK18: 2 | AL18: 35 | AN18: 50 | AO18: 142 | AS18: 53 | AW18: 44 | AX18: 42 | AY18: 3 | BC18: 3,967 | BE18: 15 | BJ18: 3,953 | BN18: =SUM(BO18:BQ18) -> 860 | BO18: 860
A19: 【216】商业服务业等支出 | B19: 888 | C19: 129 | D19: 38 | E19: 63 | F19: 27 | G19: 1 | M19: 164 | N19: 8 | O19: 2 | P19: 2 | R19: 1 | S19: 2 | V19: 5 | W19: 5 | Y19: 1 | AA19: 4 | AB19: 5 | AG19: 55 | AH19: 70 | AL19: 4 | AO19: 43 | AR19: 18 | AS19: 12 | AX19: 13 | AY19: 1 | BC19: 110 | BG19: =150-110 -> 40 | BI19: 70 | BN19: =SUM(BO19:BQ19) -> 442 | BO19: =442 -> 442
A20: 【217】金融支出 | B20: 208 | C20: 100 | D20: 35 | E20: 25 | F20: 40 | M20: 48 | N20: 15 | O20: 4 | S20: 3 | V20: 4 | W20: 2 | Y20: 2 | AG20: 7 | AH20: 7 | AK20: 3 | AL20: 2 | AO20: 11 | AX20: 10 | AY20: 1 | BN20: =SUM(BO20:BQ20) -> 49 | BO20: 49
A21: 【220】国土海洋气象等支出 | B21: 1,006 | C21: 501 | D21: 192 | E21: 67 | F21: 49 | I21: 193 | M21: 158 | N21: 21 | O21: 6 | R21: 2 | S21: 6 | T21: 9 | V21: 5 | W21: 9 | Y21: 4 | AB21: 2 | AG21: 6 | AH21: 29 | AK21: 50 | AL21: 9 | AO21: 48 | AS21: 2 | AX21: 46 | BC21: =SUM(BD21:BM21) -> 299 | BE21: 35 | BF21: 36 | BH21: 109 | BI21: 68 | BJ21: 4 | BL21: 47
A22: 【221】住房保障支出 | B22: 2,098 | M22: 0 | BC22: =SUM(BD22:BM22) -> 2,098 | BM22: 2,098
A23: 【222】粮油物资储备支出 | B23: 383 | C23: =SUM(D23:L23) -> 148 | D23: 57 | E23: 25 | F23: 41 | G23: 1 | I23: 24 | M23: 105 | N23: 12 | O23: 3 | P23: 2 | S23: 1 | T23: 1 | Y23: 11 | AC23: 1 | AG23: 25 | AL23: 8 | AN23: 41 | AO23: =SUM(AP23:AZ23) -> 19 | AS23: 2 | AX23: 16 | AY23: 1 | BN23: =SUM(BO23:BQ23) -> 111 | BQ23: 111
A24: 【229】其他支出 | B24: 234 | M24: 119 | AG24: 14 | AN24: 105 | BC24: =SUM(BD24:BM24) -> 115 | BG24: 55 | BM24: 60
A25: 【232】债务付息支出 | B25: 2,217 | M25: 0 | BR25: =SUM(BS25:BT25) -> 2,217 | BS25: 2,217
A26: 合计 | B26: =SUM(B7:B25) -> 239,536 | C26: 46,005 | D26: 18,439 | E26: 9,767 | F26: 6,119 | G26: 1,489 | I26: 8,653 | J26: 262 | K26: 123 | L26: 1,152 | M26: 64,263 | N26: 9,396 | O26: 697 | P26: 60 | Q26: 9 | R26: 160 | S26: 1,086 | T26: 434 | V26: 1,088 | W26: 470 | X26: 9 | Y26: 18,578 | Z26: 541 | AA26: 156 | AB26: 899 | AC26: 66 | AD26: 14,872 | AE26: 33 | AG26: 6,991 | AH26: 5,224 | AI26: 465 | AJ26: 48 | AK26: 510 | AL26: 1,285 | AN26: 1,186 | AO26: 45,149 | AP26: 295 | AQ26: 12,619 | AR26: 622 | AS26: 15,395 | AT26: 18 | AU26: 10,809 | AV26: 591 | AW26: 449 | AX26: 4,006 | AY26: 321 | AZ26: 22 | BA26: =SUM(BB26) -> 452 | BB26: 452 | BC26: 84,961 | BD26: 4,123 | BE26: 1,179 | BF26: 2,284 | BG26: 66,319 | BH26: 1,368 | BI26: 998 | BJ26: 8,340 | BK26: 220 | BL26: 65 | BM26: 65 | BN26: 2,164 | BO26: 2,053 | BQ26: 111 | BR26: 180 | BS26: 180

Sheet 一般（本级）基本支出
A1: 附表5
K2: 单位：万元 | U2: 单位：万元 | AD2: 单位：万元 | AM2: 单位：万元 | AY2: 单位：万元 | BI2: 单位：万元 | BS2: 单位：万元
A3: 项 目 | B3: 合计 | C3: 工资福利支出 | M3: 商品和服务支出 | W3: 商品和服务支出 | AF3: 商品和服务支出 | AO3: 对个人和家庭的补助 | BA3: 基本建设支出 | BC3: 其他资本性支出 | BK3: 其他资本性支出 | BN3: 对企事业单位的补贴 | BR3: 债务利息支出
C4: 小计 | D4: 基本工资 | E4: 津贴补贴 | F4: 奖金 | G4: 其他社会保障缴费 | H4: 伙食补助费 | I4: 绩效工资 | J4: 机关事业单位基本养老保险缴费 | K4: 职业年金缴费 | L4: 其他工资福利支出 | M4: 小计 | N4: 办公费 | O4: 印刷费 | P4: 咨询费 | Q4: 手续费 | R4: 水费 | S4: 电费 | T4: 邮电费 | U4: 取暖费 | V4: 物业管理费 | W4: 差旅费 | X4: 因公出国（境）费用 | Y4: 维修（护）费 | Z4: 租赁费 | AA4: 会议费 | AB4: 培训费 | AC4: 公务接待费 | AD4: 专用材料费 | AE4: 被装购置费 | AF4: 专用燃料费 | AG4: 劳务费 | AH4: 委托业务费 | AI4: 工会经费 | AJ4: 福利费 | AK4: 公务用车运行维护费 | AL4: 其他交通费用 | AM4: 税金及附加费用 | AN4: 其他商品和服务支出 | AO4: 小计 | AP4: 离休费 | AQ4: 退休费 | AR4: 抚恤金 | AS4: 生活补助 | AT4: 救济费 | AU4: 医疗费 | AV4: 助学金 | AW4: 奖励金 | AX4: 住房公积金 | AY4: 采暖补贴 | AZ4: 其他对个人和家庭的补助支出 | BA4: 小计 | BB4: 房屋建筑物购建 | BC4: 小计 | BD4: 房屋建筑物购建 | BE4: 办公设备购置 | BF4: 专用设备购置 | BG4: 基础设施建设 | BH4: 大型修缮 | BI4: 信息网络及软件购置更新 | BJ4: 土地补偿 | BK4: 拆迁补偿 | BL4: 公务用车购置 | BM4: 其他资本性支出 | BN4: 小计 | BO4: 企业政策性补贴 | BP4: 事业单位补贴 | BQ4: 财政贴息 | BR4: 小计 | BS4: 国内债务付息 | BT4: 国外债务付息
A7: 【201】一般公共服务支出 | B7: =SUM(C7,M7,AO7,BA7,BN7,BR7,,BC7) -> 15,535 | C7: =SUM(D7:L7) -> 6,687 | D7: 2,144 | E7: 1,996 | F7: 2,282 | G7: 39 | I7: 196 | J7: 23 | K7: 5 | L7: 3 | M7: =SUM(N7:AN7) -> 5,799 | N7: 771 | O7: 229 | P7: 36 | R7: 13 | S7: 116 | T7: 198 | V7: 57 | W7: 171 | Y7: 190 | Z7: 155 | AA7: 89 | AB7: 127 | AC7: 25 | AD7: 1 | AG7: 612 | AH7: 287 | AI7: 31 | AK7: 124 | AL7: 479 | AN7: =59.548236+2028 -> 2,088 | AO7: =SUM(AP7:AZ7) -> 3,049 | AR7: 125 | AS7: 2,062 | AT7: 11 | AW7: 187 | AX7: 612 | AY7: 52
A8: 【204】公共安全支出 | B8: 11,038 | C8: 6,777 | D8: 2,530 | E8: 1,657 | F8: 2,009 | G8: 12 | I8: 30 | J8: 3 | L8: 535 | M8: 3,723 | N8: 1,781 | O8: 12 | R8: 4 | S8: 31 | T8: 55 | V8: 13 | W8: 66 | Y8: 174 | Z8: 210 | AB8: 44 | AC8: 2 | AE8: 33 | AG8: 194 | AI8: 23 | AJ8: 2 | AK8: 198 | AL8: 369 | AN8: =220.235+291 -> 511 | AO8: 539 | AR8: 50 | AS8: 17 | AT8: 2 | AU8: 6 | AX8: 440 | AY8: 23 | AZ8: 1
A9: 【205】教育支出 | B9: 27,340 | C9: 17,466 | D9: 8,565 | E9: 2,463 | F9: 140 | G9: 788 | I9: 5,317 | J9: 124 | K9: 69 | M9: 6,533 | N9: 1,787 | O9: 213 | P9: 3 | Q9: 2 | R9: 97 | S9: 375 | T9: 109 | V9: 561 | W9: 70 | X9: 9 | Y9: 601 | Z9: 81 | AA9: 43 | AB9: 318 | AC9: 3 | AD9: 176 | AG9: 1,533 | AH9: 169 | AI9: 276 | AJ9: 4 | AK9: 1 | AL9: 30 | AN9: =109.948813-37 -> 73 | AO9: 3,341 | AR9: 254 | AS9: 441 | AT9: 5 | AU9: 0 | AV9: 591 | AW9: 41 | AX9: 1,837 | AY9: 165 | AZ9: 6
A10: 【206】科学技术支出 | B10: 1,310 | C10: 80 | D10: 42 | E10: 29 | G10: 3 | I10: 3 | K10: 3 | M10: 1,221 | N10: =1982.5-789 -> 1,194 | W10: 3 | AG10: 17 | AL10: 7 | AO10: 9 | AX10: 9
A11: 【207】文化体育与传媒支出 | B11: 1,450 | C11: 624 | D11: 233 | E11: 209 | F11: 101 | G11: 11 | I11: 64 | J11: 5 | K11: 1 | M11: 731 | N11: 86 | O11: 7 | R11: 1 | S11: 8 | T11: 1 | V11: 36 | W11: 8 | Y11: 26 | AA11: 1 | AB11: 5 | AC11: 2 | AG11: 76 | AH11: 194 | AI11: 8 | AK11: 6 | AL11: 9 | AN11: =50.753639+206 -> 257 | AO11: 96 | AR11: 3 | AS11: 20 | AX11: 68 | AY11: 5
A12: 【208】社会保障和就业支出 | B12: 34,609 | C12: 1,569 | D12: 483 | E12: 490 | F12: 423 | G12: 97 | I12: 54 | J12: 15 | K12: 7 | M12: 1,212 | N12: 538 | O12: 25 | P12: 10 | R12: 2 | S12: 15 | T12: 8 | V12: 13 | W12: 19 | Y12: 34 | Z12: 5 | AA12: 16 | AB12: 20 | AC12: 5 | AG12: 71 | AH12: 322 | AI12: 16 | AK12: 15 | AL12: 75 | AN12: 5 | AO12: 31,828 | AP12: 295 | AQ12: 12,619 | AR12: 88 | AS12: 12,360 | AU12: 105 | AW12: 14 | AX12: 70 | AY12: 10 | AZ12: 6,266
A13: 【210】医疗卫生与计划生育支出 | B13: 22,301 | C13: 4,582 | D13: 1,819 | E13: 1,142 | F13: 232 | G13: 233 | I13: 1,084 | J13: 39 | K13: 18 | L13: 16 | M13: 6,328 | N13: 718 | O13: 128 | P13: 1 | R13: 8 | S13: 71 | T13: 16 | V13: 49 | W13: 32 | Y13: 198 | Z13: 38 | AA13: 1 | AB13: 20 | AC13: 12 | AD13: 2,370 | AG13: 1,741 | AH13: 59 | AI13: 20 | AJ13: 42 | AK13: 65 | AL13: 13 | AN13: 727 | AO13: 11,390 | AR13: 54 | AS13: 122 | AU13: 10,698 | AW13: 163 | AX13: 308 | AY13: 46
A14: 【211】节能环保支出 | B14: 611 | M14: 611 | AH14: 395 | AN14: 216
A15: 【212】城乡社区支出 | B15: 15,056 | C15: =SUM(D15:L15) -> 1,777 | D15: 727 | E15: 388 | F15: 215 | G15: 45 | I15: 375 | J15: 23 | K15: 3 | M15: 13,046 | N15: 292 | O15: 6 | R15: 6 | S15: 257 | T15: 9 | V15: 80 | W15: 23 | Y15: 9,124 | Z15: 21 | AA15: 1 | AB15: 4 | AC15: 1 | AG15: 619 | AH15: 2,420 | AI15: 9 | AK15: 22 | AL15: 151 | AO15: =SUM(AP15:AZ15) -> 233 | AR15: 4 | AS15: 39 | AX15: 187 | AY15: 3
A16: 【213】农林水支出 | B16: 13,262 | C16: 2,107 | D16: 884 | E16: 673 | F16: 176 | G16: 120 | I16: 227 | J16: 17 | K16: 9 | M16: 10,741 | N16: 1,123 | O16: 27 | P16: 1 | Q16: 1 | R16: 8 | S16: 23 | T16: 10 | V16: 7 | W16: 26 | Y16: 27 | Z16: 9 | AA16: 2 | AB16: 307 | AC16: 13 | AD16: 6,105 | AG16: 1,062 | AH16: 1,107 | AI16: 13 | AK16: 13 | AL16: 34 | AN16: =8.607734+816 -> 825 | AO16: 415 | AR16: 26 | AS16: 177 | AU16: 0 | AX16: 200 | AY16: 12
A17: 【214】交通运输支出 | B17: 441 | C17: 341 | D17: 126 | E17: 61 | F17: 51 | G17: 40 | I17: 63 | M17: 98 | N17: 25 | O17: 1 | R17: 2 | S17: 3 | T17: 1 | W17: 3 | Y17: 4 | AG17: 31 | AI17: 3 | AK17: 5 | AN17: 20 | AO17: 2 | AS17: 2
A18: 【215】资源勘探信息等支出 | B18: 1,362 | C18: 698 | D18: 277 | E18: 214 | F18: 188 | G18: 7 | I18: 6 | J18: 2 | K18: 1 | L18: 3 | M18: 521 | N18: 46 | O18: 16 | P18: 5 | R18: 3 | S18: 9 | T18: 6 | V18: 16 | W18: 7 | Y18: 47 | Z18: 17 | AB18: 22 | AC18: 2 | AD18: 1 | AG18: 70 | AH18: 165 | AI18: 1 | AK18: 2 | AL18: 35 | AN18: 50 | AO18: 142 | AS18: 53 | AW18: 44 | AX18: 42 | AY18: 3
A19: 【216】商业服务业等支出 | B19: 336 | C19: 129 | D19: 38 | E19: 63 | F19: 27 | G19: 1 | M19: 164 | N19: 8 | O19: 2 | P19: 2 | R19: 1 | S19: 2 | V19: 5 | W19: 5 | Y19: 1 | AA19: 4 | AB19: 5 | AG19: 55 | AH19: 70 | AL19: 4 | AO19: 43 | AR19: 18 | AS19: 12 | AX19: 13 | AY19: 1
A20: 【217】金融支出 | B20: 159 | C20: 100 | D20: 35 | E20: 25 | F20: 40 | M20: 48 | N20: 15 | O20: 4 | S20: 3 | V20: 4 | W20: 2 | Y20: 2 | AG20: 7 | AH20: 7 | AK20: 3 | AL20: 2 | AO20: 11 | AX20: 10 | AY20: 1
A21: 【220】国土海洋气象等支出 | B21: 707 | C21: 501 | D21: 192 | E21: 67 | F21: 49 | I21: 193 | M21: 158 | N21: 21 | O21: 6 | R21: 2 | S21: 6 | T21: 9 | V21: 5 | W21: 9 | Y21: 4 | AB21: 2 | AG21: 6 | AH21: 29 | AK21: 50 | AL21: 9 | AO21: 48 | AS21: 2 | AX21: 46
A22: 【221】住房保障支出 | B22: 0 | M22: 0
A23: 【222】粮油物资储备支出 | B23: 272 | C23: =SUM(D23:L23) -> 148 | D23: 57 | E23: 25 | F23: 41 | G23: 1 | I23: 24 | M23: 105 | N23: 12 | O23: 3 | P23: 2 | S23: 1 | T23: 1 | Y23: 11 | AC23: 1 | AG23: 25 | AL23: 8 | AN23: 41 | AO23: =SUM(AP23:AZ23) -> 19 | AS23: 2 | AX23: 16 | AY23: 1
A24: 【229】其他支出 | B24: 119 | M24: 119 | AG24: 14 | AN24: 105
A25: 【232】债务付息支出 | B25: 0 | M25: 0
A26: 合计 | B26: =SUM(B7:B25) -> 145,908 | C26: 46,005 | D26: 18,439 | E26: 9,767 | F26: 6,119 | G26: 1,489 | I26: 8,653 | J26: 262 | K26: 123 | L26: 1,152 | M26: 64,263 | N26: 9,396 | O26: 697 | P26: 60 | Q26: 9 | R26: 160 | S26: 1,086 | T26: 434 | V26: 1,088 | W26: 470 | X26: 9 | Y26: 18,578 | Z26: 541 | AA26: 156 | AB26: 899 | AC26: 66 | AD26: 14,872 | AE26: 33 | AG26: 6,991 | AH26: 5,224 | AI26: 465 | AJ26: 48 | AK26: 510 | AL26: 1,285 | AN26: 1,186 | AO26: 45,149 | AP26: 295 | AQ26: 12,619 | AR26: 622 | AS26: 15,395 | AT26: 18 | AU26: 10,809 | AV26: 591 | AW26: 449 | AX26: 4,006 | AY26: 321 | AZ26: 22

Sheet 一般税收返还和转移支付
A1: 附表6
A2: 西安市阎良区2017年一般公共预算税收返还和转移支付决算表
B3: 单位：万元
A4: 项 目
B5: 2017年
A6: 一、返还性收入 | B6: =SUM(B7:B10) -> 5,210
A7: 其中：增值税和消费税税收返还收入 | B7: 1,187
A8: 所得税基数返还收入 | B8: 1,172
A9: 营改增返还基数 | B9: 2,590
A10: 成品油价格和税费改革税收返还收入 | B10: 261
A11: 二、一般转移支付收入 | B11: =SUM(B12:B23) -> 29,925
A12: 其中；（1）均衡性转移支付 | B12: 3,289
A13: （2）县级基本财力保障机制奖补资金收入 | B13: 2,547
A14: （3）企业事业单位划转补助收入 | B14: 3,180
A15: （4）固定数额补助收入 | B15: 6,100
A16: （5）成品油价格和税费改革转移支付补助收入
A17: （6）基层公检法司转移支付收入 | B17: 1,131
A18: （7）义务教育等转移支付收入 | B18: 2,541
A19: （8）基本养老保险和低保等转移支付收入 | B19: 3,746
A20: （9）新型农村合作医疗等转移支付收入
A21: （10）农村综合改革转移支付收入 | B21: 435
A22: （11）结算补助收入 | B22: 462
A23: （12）城乡居民医疗保险转移支付收入 | B23: 6,494
A24: 三、专项转移转移支付收入 | B24: =SUM(B25:B42) -> 64,142
A25: 其中：（1）一般公共服务 | B25: 397
A26: （2）公共安全 | B26: 2,575
A27: （3）教育 | B27: 9,847
A28: （4）科学技术 | B28: 263
A29: （5）文化体育与传媒 | B29: 347
A30: （6）社会保障和就业 | B30: 10,961
A31: （7）医疗卫生与计划生育 | B31: 4,073
A32: （8）节能环保 | B32: 1,764
A33: （9）城乡社区 | B33: 7,566
A34: （10）农林水 | B34: 24,214
A35: （11）交通运输 | B35: 470
A36: （12）资源勘探信息等 | B36: 832
A37: （13）商业服务业等 | B37: 552
A38: （14）金融 | B38: 4
A39: （15）国土海洋气象等 | B39: 14
A40: （16）住房保障 | B40: 133
A41: （17）粮油物资储备 | B41: 40
A42: （18）其他收入 | B42: 90
A43: 四、地方政府一般债券转贷收入 | B43: =SUM(B44:B45) -> 37,030
A44: 其中： 转贷新增一般债券收入 | B44: 4,000
A45: 转贷置换一般债券收入 | B45: 33,030
A46: 一般公共预算补助收入总计 | B46: =SUM(B6,B11,B24,B43) -> 136,307
A47: 备注：无对其他地区转移支付

Sheet 一般债务
A1: 附表7
A2: 西安市阎良区2017年一般债务限额和余额情况决算表
E3: 单位：万元
A4: 项 目 | B4: 一 般 债 务
B5: 上年结余情况 | C5: 当年新增债务 | D5: 当年偿还债务情况 | E5: 债务余额
A6: 2016年底政府举债情况 | B6: 94,859
A7: 2017年当年新增债务情况 | C7: =SUM(C8:C9) -> 37,030
A8: 其中：新增置换债券 | C8: 33,030
A9: 新增地方政府债务 | C9: 4,000
A10: 2017年当年偿还政府债券情况 | D10: =SUM(D11:D12) -> 34,147
A11: 其中：使用置换债券还本支出 | D11: 33,030
A12: 使用区级财力还本支出 | D12: 1,117
A13: 2017年底债务余额 | E13: =B6+C7-D10 -> 97,742
A14: 2017年债务限额 | B14: 118,400

Sheet 全区收支平衡表
A2: 西安市阎良区2017年一般公共预算收支决算平衡表
D3: 单位：万元
A4: 收 入 | C4: 支 出
A5: 项 目 | B5: 决算数 | C5: 项 目 | D5: 决算数
A6: 一般公共预算收入小计 | B6: 118,939 | C6: 一般公共预算支出小计 | D6: 239,536
A7: 上级补助收入 | B7: 101,277 | C7: 上解上级支出 | D7: 3,853
A8: 下级上解收入 | C8: 补助下级支出
A9: 地方政府债券收入 | B9: 37,030 | C9: 地方政府债券还本支出 | D9: 33,696
A10: 上年结余 | B10: 4,500 | C10: 转贷地方政府债券支出
A11: 调入预算稳定调节基金 | B11: 457 | C11: 增设预算周转金
A12: 调入资金 | B12: 17,049 | C12: 安排预算稳定调节基金 | D12: 167
A13: ※ | B13: ※ | C13: 累计结余 | D13: 2,000
A14: ※ | B14: ※ | C14: 减：结转下年支出 | D14: 2,000
A15: ※ | B15: ※ | C15: 等：净结余
A16: 一般公共预算收入总计 | B16: =SUM(B6:B12) -> 279,252 | C16: 一般公共预算支出总计 | D16: =SUM(D6:D13) -> 279,252

Sheet 政府性基金收入
A1: 附表8
A2: 西安市阎良区2017年政府性基金预算收入决算表
F3: 单位：万元
A4: 收 入
A5: 项 目 | B5: 2017年 | D5: 2016年 决算数 | E5: 2017年决算数
B6: 预算数 | C6: 决算数 | E6: 占预算％ | F6: 与上年比+－％
A7: 一、政府住房基金收入
A8: 二、散装水泥专项资金收入
A9: 三、新型墙体材料专项基金收入 | B9: 315 | C9: 292 | D9: 303 | E9: =C9/B9 -> 92.7% | F9: =C9/D9-1 -> -3.6%
A10: 四、城市公用事业附加收入 | B10: 165 | C10: 102 | D10: 231 | E10: =C10/B10 -> 61.8% | F10: =C10/D10-1 -> -55.8%
A11: 五、城市基础设施配套费收入 | B11: 4,900 | C11: 5,305 | D11: 3,828 | E11: 108.3% | F11: 38.6%
A12: 六、国有土地使用权出让金收入 | B12: 10,000 | C12: 1,320 | E12: 13.2%
A13: 七、国有土地收益基金收入 | C13: 2,783 | D13: 900 | F13: =C13/D13-1 -> 209.2%
A14: 八、农业土地开发资金收入
A15: 九、污水处理费 | C15: 42
A16: 十、彩票发行机构和彩票销售机构的业务费用
A17: 十一、其他基金收入 | C17: 35
A18: 政府性基金收入小计 | B18: =SUM(B9:B17) -> 15,380 | C18: =SUM(C7:C17) -> 9,879 | D18: 5,262 | E18: =C18/B18 -> 64.2% | F18: =C18/D18-1 -> 87.7%
A19: 上年结余收入 | B19: ※ | C19: 1,751 | D19: ※ | E19: ※ | F19: ※
A20: 上级补助收入 | B20: ※ | C20: 4,634 | D20: ※ | E20: ※ | F20: ※
A21: 下级上解收入 | B21: ※ | D21: ※ | E21: ※ | F21: ※
A22: 地方政府债券收入 | B22: ※ | D22: ※ | E22: ※ | F22: ※
A23: ※ | B23: ※ | C23: ※ | D23: ※ | E23: ※ | F23: ※
A24: ※ | B24: ※ | C24: ※ | D24: ※ | E24: ※ | F24: ※
A25: 政府性基金收入总计 | B25: ※ | C25: =SUM(C18:C20) -> 16,264 | D25: ※ | E25: ※ | F25: ※

Sheet 政府性基金支出
A1: 附表9
A2: 西安市阎良区2017年政府性基金预算支出决算表
E3: 单位：万元
A4: 支出
A5: 项 目 | B5: 2017年 | D5: 2016年 决算数 | E5: 2017年决算数
B6: 预算数 | C6: 决算数 | E6: 占预算％ | F6: 与上年比+－％
A7: 一、教育支出
A8: 二、文化体育与传媒支出
A9: 三、社会保障和就业支出 | C9: 413 | D9: 391 | F9: =C9/D9-1 -> 5.6%
A10: 四、城乡社区支出 | B10: 15,065 | C10: 12,544 | D10: 6,671 | E10: =C10/B10 -> 83.3% | F10: 88.0%
A11: 五、农林水支出
A12: 六、资源勘探信息等支出 | B12: 315 | C12: 293 | D12: 242 | E12: =C12/B12 -> 93.0% | F12: =C12/D12-1 -> 21.1%
A13: 七、商业服务业等支出
A14: 八、其他支出 | C14: 1,245 | D14: 731 | F14: =C14/D14-1 -> 70.3%
A18: 政府性基金支出小计 | B18: =SUM(B7:B14) -> 15,380 | C18: =SUM(C7:C14) -> 14,495 | D18: 8,035 | E18: =C18/B18 -> 94.2% | F18: =C18/D18-1 -> 80.4%
A19: 上解支出 | B19: ※ | D19: ※ | E19: ※ | F19: ※
A20: 补助下级支出 | B20: ※ | D20: ※ | E20: ※ | F20: ※
A21: 地方政府债券还本支出 | B21: ※ | D21: ※ | E21: ※ | F21: ※
A22: 转贷地方政府债券支出 | B22: ※ | D22: ※ | E22: ※ | F22: ※
A23: 调出资金 | B23: ※ | C23: 1,769 | D23: ※ | E23: ※ | F23: ※
A24: 年终结余 | B24: ※ | D24: ※ | E24: ※ | F24: ※
A25: 政府性基金支出总计 | B25: ※ | C25: =SUM(C18:C24) -> 16,264 | D25: ※ | E25: ※ | F25: ※

Sheet 政府性基金（功能）
A1: 附表10
A2: 西安市阎良区2017年政府性基金预算支出情况表—按功能科目分类
I3: 单位：万元
A4: 科目编码 | B4: 科目名称 | C4: 2017年支出预算执行数 | G4: 2017年预算数 | H4: 2016年决算数 | I4: 2017年执行比例
C5: 执行数小计 | D5: 区本级财力支出 | E5: 上级转移支付支出
E6: 返还及一般转移支付 | F6: 专项转移支付 | I6: 占预算％ | J6: 与上年比+－％
B7: 政府性基金支出 | C7: 14,495 | D7: 9,861 | E7: 0 | F7: 4,634 | G7: 15,380 | H7: 8,035 | I7: 94.2% | J7: 80.4%
A8: 208 | B8: 社会保障和就业支出 | C8: 413 | D8: 0 | F8: 413 | H8: 391 | J8: 5.6%
A9: 20822 | B9: 大中型水库移民后期扶持基金支出 | C9: 413 | D9: 0 | E9: 0 | F9: 413 | G9: 0 | H9: 391 | J9: 5.6%
A10: 2082201 | B10: 移民补助 | C10: 310 | D10: 0 | F10: 310 | H10: 322 | J10: -3.7%
A11: 2082202 | B11: 基础设施建设和经济发展 | C11: 96 | D11: 0 | F11: 96 | H11: 69 | J11: 39.1%
A12: 2082299 | B12: 其他大中型水库移民后期扶持基金支出 | C12: 7 | D12: 0 | F12: 7
A13: 20823 | B13: 小型水库移民扶助基金及对应专项债务收入安排的支出 | C13: 0 | D13: 0 | E13: 0 | F13: 0 | G13: 0 | H13: 0
A14: 2082301 | B14: 移民补助 | D14: 0
A15: 2082302 | B15: 基础设施建设和经济发展 | D15: 0
A16: 20860 | B16: 残疾人就业保障金支出 | D16: 0
A17: 212 | B17: 城乡社区支出 | C17: 12,544 | D17: 9,568 | E17: 0 | F17: 2,976 | G17: 15,065 | H17: 6,671 | I17: 83.3% | J17: 88.0%
A18: 21207 | B18: 政府住房基金及对应专项债务收入安排的支出 | D18: 0 | H18: 0
A19: 21208 | B19: 国有土地使用权出让收入及对应专项债务收入安排的支出 | C19: 1,480 | D19: 1,480 | E19: 0 | F19: 0 | G19: 0 | H19: 274 | J19: 440.1%
A20: 2120801 | B20: 征地和拆迁补偿支出 | C20: 1,480 | D20: 1,480 | H20: 51
A21: 2120802 | B21: 土地开发支出 | D21: 0 | H21: 0
A22: 2120803 | B22: 城市建设支出 | D22: 0 | H22: 223
A23: 2120811 | B23: 公共租赁住房支出 | D23: 0
A24: 21209 | B24: 城市公用事业附加及对应专项债务收入安排的支出 | C24: 0 | D24: 0 | E24: 0 | F24: 0 | G24: 165 | H24: 80
A25: 2120901 | B25: 城市公共设施 | D25: 0 | H25: 20
A26: 2120902 | B26: 城市环境卫生 | D26: 0 | H26: 0
A27: 2120999 | B27: 其他城市公用事业附加安排的支出 | D27: 0 | G27: 165 | H27: 60
A28: 21210 | B28: 国有土地收益基金及对应专项债务收入安排的支出 | C28: 2,783 | D28: 2,783 | E28: 0 | F28: 0 | G28: 10,000 | H28: 0 | I28: 27.8%
A29: 2121001 | B29: 征地和拆迁补偿支出 | C29: 2,228 | D29: 2,228
A30: 2121002 | B30: 土地开发支出 | D30: 0
A31: 2121099 | B31: 其他国有土地收益基金支出 | C31: 555 | D31: 555 | G31: 10,000 | I31: 5.6%
A32: 21211 | B32: 农业土地开发资金及对应专项债务收入安排的支出 | C32: 0 | D32: 0 | F32: 0 | H32: 0
A33: 21212 | B33: 新增建设用地土地有偿使用费及对应专项债务收入安排的支出 | C33: 0 | D33: 0 | E33: 0 | F33: 0 | G33: 0 | H33: 500
A34: 2121201 | B34: 耕地开发专项支出 | D34: 0 | H34: 0
A35: 2121202 | B35: 基本农田建设和保护支出 | D35: 0 | H35: 500
A36: 2121203 | B36: 土地整理支出 | D36: 0
A37: 21213 | B37: 城市基础设施配套费及对应专项债务收入安排的支出 | C37: 8,281 | D37: 5,305 | E37: 0 | F37: 2,976 | G37: 4,900 | H37: 5,817 | I37: 169.0% | J37: 42.4%
A38: 2121301 | B38: 城市公共设施 | C38: 1,915 | D38: 415 | F38: 1,500 | H38: 2,700 | J38: -29.1%
A39: 2121302 | B39: 城市环境卫生 | C39: 597 | D39: 421 | F39: 176 | H39: 321 | J39: 86.0%
A40: 2121303 | B40: 公有房屋 | D40: 0
A41: 2121399 | B41: 其他城市基础设施配套费安排的支出 | C41: 5,769 | D41: 4,469 | F41: 1,300 | G41: 4,900 | H41: 2,796 | I41: 117.7% | J41: 106.3%
A42: 21214 | B42: 污水处理费及对应专项债务收入安排的支出 | C42: 0 | D42: 0 | F42: 0 | H42: 0
A43: 213 | B43: 农林水支出 | C43: 0 | D43: 0 | F43: 0 | H43: 0
A44: 21360 | B44: 新菜地开发建设基金及对应专项债务收入安排的支出 | D44: 0 | H44: 0
A45: 21363 | B45: 中央水利建设基金支出 | D45: 0
A46: 21364 | B46: 地方水利建设基金支出 | D46: 0
A47: 215 | B47: 资源勘探信息等支出 | C47: 293 | D47: 293 | E47: 0 | F47: 0 | G47: 315 | H47: 242 | I47: 93.0% | J47: 21.1%
A48: 21505 | B48: 工业和信息产业监管 | D48: 0 | H48: 0
A49: 2150570 | B49: 无线电频率占用费安排的支出 | D49: 0 | H49: 0
A50: 21560 | B50: 散装水泥专项资金及对应专项债务收入安排的支出 | D50: 0 | H50: 0
A51: 21561 | B51: 新型墙体材料专项基金及对应专项债务收入安排的支出 | C51: 293 | D51: 293 | E51: 0 | F51: 0 | G51: 315 | H51: 242 | I51: 93.0% | J51: 21.1%
A52: 2156101 | B52: 技改贴息和补助 | D52: 0 | H52: 0
A53: 2156199 | B53: 其他新型墙体材料专项基金支出 | C53: 293 | D53: 293 | G53: 315 | H53: 242 | I53: 93.0% | J53: 21.1%
A54: 21562 | B54: 农网还贷资金支出 | C54: 0 | D54: 0 | F54: 0 | H54: 0
A55: 21564 | B55: 电力改革预留资产变现收入安排的支出 | D55: 0 | H55: 0
A56: 229 | B56: 其他支出 | C56: 1,245 | D56: 0 | E56: 0 | F56: 1,245 | G56: 0 | H56: 731 | J56: 70.3%
A57: 22908 | B57: 彩票发行销售机构业务费安排的支出 | C57: 118 | D57: 0 | E57: 0 | F57: 118 | G57: 0 | H57: 50 | J57: 136.0%
A58: 2290804 | B58: 福利彩票销售机构的业务费支出 | C58: 78 | D58: 0 | F58: 78 | H58: 38 | J58: 105.3%
A59: 2290808 | B59: 彩票市场调控资金支出 | C59: 40 | D59: 0 | F59: 40 | H59: 12 | J59: 233.3%
A60: 2290899 | B60: 其他彩票发行销售机构业务费安排的支出 | D60: 0 | H60: 0
A61: 22960 | B61: 彩票公益金及对应专项债务收入安排的支出 | C61: 1,127 | D61: 0 | E61: 0 | F61: 1,127 | G61: 0 | H61: 681 | J61: 65.5%
A62: 2296001 | B62: 用于补充全国社会保障基金的彩票公益金支出 | D62: 0 | H62: 0
A63: 2296002 | B63: 用于社会福利的彩票公益金支出 | C63: 1,069 | D63: 0 | F63: 1,069 | H63: 666 | J63: 60.5%
A64: 2296003 | B64: 用于体育事业的彩票公益金支出 | C64: 47 | D64: 0 | F64: 47
A65: 2296004 | B65: 用于教育事业的彩票公益金支出 | C65: 10 | D65: 0 | F65: 10 | H65: 15 | J65: -33.3%
A66: 2296006 | B66: 用于残疾人事业的彩票公益金支出 | C66: 1 | D66: 0 | F66: 1
A67: 22961 | B67: 烟草企业上缴专项收入安排的支出 | D67: 0 | H67: 0
A68: 22904 | B68: 其他政府性基金及对应专项债务收入安排的支出 | C68: 0 | D68: 0 | F68: 0 | H68: 0
A69: 232 | B69: 债务付息支出 | C69: 0 | D69: 0 | F69: 0 | H69: 0
A70: 233 | B70: 债务发行费用支出 | C70: 0 | D70: 0 | F70: 0 | H70: 0

Sheet 政府性基金（经济分类）
L1: 附表11
J2: 单位：万元 | AE2: 单位：万元 | BZ2: 单位：万元
A3: 项目 | B3: 合计 | C3: 工资福利支出 | K3: 商品和服务支出 | AH3: 商品和服务支出 | AM3: 对个人和家庭的补助 | BD3: 基本建设支出 | BO3: 其他资本性支出 | CE3: 对企事业单位的补贴 | CJ3: 债务利息支出 | CM3: 其他支出
C4: 小计 | D4: 基本工资 | E4: 津贴补贴 | F4: 奖金 | G4: 绩效工资 | H4: 机关事业单位基本养老保险缴费 | I4: 职业年金缴费 | J4: 其他工资福利支出 | K4: 小计 | L4: 办公费 | M4: 印刷费 | N4: 咨询费 | O4: 手续费 | P4: 水费 | Q4: 电费 | R4: 邮电费 | S4: 取暖费 | T4: 物业管理费 | U4: 差旅费 | V4: 因公出国（境）费用 | W4: 维修（护）费 | X4: 租赁费 | Y4: 会议费 | Z4: 培训费 | AA4: 公务接待费 | AB4: 专用材料费 | AC4: 被装购置费 | AD4: 专用燃料费 | AE4: 劳务费 | AF4: 委托业务费 | AG4: 工会经费 | AH4: 福利费 | AI4: 公务用车运行维护费 | AJ4: 其他交通费用 | AK4: 税金及附加费用 | AL4: 其他商品和服务支出 | AM4: 小计 | AN4: 离休费 | AO4: 退休费 | AP4: 退职（役）费 | AQ4: 抚恤金 | AR4: 生活补助 | AS4: 救济费 | AT4: 医疗费 | AU4: 助学金 | AV4: 奖励金 | AW4: 生产补贴 | AX4: 住房公积金 | AY4: 提租补贴 | AZ4: 购房补贴 | BA4: 采暖补贴 | BB4: 物业服务补贴 | BC4: 其他对个人和家庭的补助支出 | BD4: 小计 | BE4: 房屋建筑物购建 | BF4: 办公设备购置 | BG4: 专用设备购置 | BH4: 基础设施建设 | BI4: 大型修缮 | BJ4: 信息网络及软件购置更新 | BK4: 物资储备 | BL4: 公务用车购置 | BM4: 其他交通工具购置 | BN4: 其他基本建设支出 | BO4: 小计 | BP4: 房屋建筑物购建 | BQ4: 办公设备购置 | BR4: 专用设备购置 | BS4: 基础设施建设 | BT4: 大型修缮 | BU4: 信息网络及软件购置更新 | BV4: 物资储备 | BW4: 土地补偿 | BX4: 安置补助 | BY4: 地上附着物和青苗补偿 | BZ4: 拆迁补偿 | CA4: 公务用车购置 | CB4: 其他交通工具购置 | CC4: 产权参股 | CD4: 其他资本性支出 | CE4: 小计 | CF4: 企业政策性补贴 | CG4: 事业单位补贴 | CH4: 财政贴息 | CI4: 其他对企事业单位的补贴 | CJ4: 小计 | CK4: 国内债务付息 | CL4: 国外债务付息 | CM4: 小计 | CN4: 赠与 | CO4: 贷款转贷 | CP4: 其他支出
A7: 合计 | B7: =SUM(C7,K7,AM7,BD7,BO7) -> 14,495 | C7: =SUM(C8:C11) -> 246 | D7: =SUM(D8:D11) -> 57 | E7: =SUM(E8:E11) -> 33 | F7: 83 | G7: 55 | H7: 11 | I7: 7 | K7: =SUM(K8:K11) -> 6,002 | L7: 24 | M7: 5 | N7: 0 | O7: 0 | P7: 1 | Q7: 32 | R7: 1 | S7: 0 | T7: 41 | W7: =SUM(W8:W11) -> 5,695 | X7: 3 | Z7: =SUM(Z8:Z11) -> 5 | AE7: =SUM(AE8:AE11) -> 21 | AF7: =SUM(AF8:AF11) -> 8 | AG7: =SUM(AG8:AG11) -> 0 | AH7: =SUM(AH8:AH11) -> 0 | AI7: =SUM(AI8:AI11) -> 0 | AJ7: 12 | AK7: 0 | AL7: 155 | AM7: 554 | AN7: 0 | AO7: 0 | AP7: 0 | AQ7: 0 | AR7: 531 | AS7: 0 | AT7: 0 | AU7: 0 | AV7: 0 | AW7: 0 | AX7: 8 | AY7: 0 | AZ7: 0 | BA7: 0 | BB7: 0 | BC7: 15 | BD7: 0 | BE7: 0 | BF7: 0 | BG7: 0 | BH7: 0 | BI7: 0 | BJ7: 0 | BK7: 0 | BL7: 0 | BM7: 0 | BN7: =SUM(BN8:BN11) -> 0 | BO7: =SUM(BO8:BO11) -> 7,693 | BP7: 0 | BQ7: 2 | BR7: 0 | BS7: 2,004 | BT7: 0 | BU7: 0 | BV7: 0 | BW7: 4,083 | BX7: 0 | BY7: 0 | BZ7: 160 | CA7: 0 | CB7: 0 | CC7: 0 | CD7: 1,444 | CE7: 0 | CF7: 0 | CG7: 0 | CH7: 0 | CI7: 0 | CJ7: 0 | CK7: 0 | CL7: 0 | CM7: 0 | CN7: 0 | CO7: 0 | CP7: 0
A8: 【208】社会保障和就业支出 | B8: 413 | AM8: =SUM(AN8:BC8) -> 413 | AR8: 413 | BO8: =SUM(BP8:CD8) -> 0
A9: 【212】城乡社区支出 | B9: 12,544 | K9: =SUM(L9:AL9) -> 5,771 | L9: 13 | P9: 1 | Q9: 32 | R9: 1 | T9: 7 | W9: 5,692 | AE9: 6 | AF9: 8 | AJ9: 12 | AM9: 0 | BO9: 6,773 | BS9: 1,230 | BW9: 4,083 | BZ9: 160 | CD9: 1,300
A10: 【215】资源勘探信息等支出 | B10: 293 | C10: =SUM(D10:J10) -> 246 | D10: 57 | E10: 33 | F10: 83 | G10: 55 | H10: 11 | I10: 7 | K10: 8 | L10: 6 | M10: 1 | AE10: 1 | AM10: 39 | AR10: 31 | AX10: 8 | BO10: 0
A11: 【229】其他支出 | B11: 1,245 | K11: 223 | L11: 5 | M11: 4 | R11: 1 | T11: 34 | W11: 3 | X11: 3 | Z11: 5 | AE11: 14 | AL11: 155 | AM11: 102 | AR11: 87 | BC11: 15 | BO11: 920 | BQ11: 2 | BS11: 774 | CD11: 144

Sheet 政府性基金转移支付
A1: 附表12
A2: 西安市阎良区2017年政府性基金转移支付决算表
B3: 单位：万元
A4: 项 目 | B4: 2017年
A6: 专项转移转移支付收入 | B6: =SUM(B7:B21) -> 4,634
A7: 其中：（1）科学技术支出
A8: （2）文化体育与传媒支出
A9: （3）社会保障和就业支出 | B9: 413
A10: （4）节能环保支出
A11: （5）城乡社区支出 | B11: 2,976
A12: （6）农林水支出
A13: （7）交通运输支出
A14: （8）资源勘探信息等支出
A15: （9）商业服务业等支出
A16: （10）金融支出
A17: （11）其他支出 | B17: 1,245
A18: （12）债务付息支出
A19: （13）债务发行费用支出
A22: 备注：无对其他地区转移支付

Sheet 专项债务
A1: 附表13
A2: 西安市阎良区2017年专项债务限额和余额情况决算表
E3: 单位：万元
A4: 项 目 | B4: 专项债务 | F4: 备注
B5: 上年结余情况 | C5: 当年新增债务 | D5: 当年偿还债务情况 | E5: 债务余额
A6: 2016年底政府举债情况
A7: 2017年当年新增债务情况
A8: 其中：新增置换债券
A9: 新增地方政府债务
A10: 2017年当年偿还政府债券情况
A11: 其中：使用置换债券还本支出
A12: 使用区级财力还本支出
A13: 2017年底债务余额
A14: 2017年债务限额 | B14: -

Sheet 国有资本经营收入
A1: 附表14
A2: 西安市阎良区2017年国有资本经营收入决算表
A4: 项 目 | B4: 2017年决算数 | C4: 与上年同比+－％
A5: 一、利润收入
A6: 二、股权、股息收入
A7: 三、产权转让收入
A8: 四、其他国有资本经营预算收入
A12: 国有资本经营预算收入合计
A13: 转移性收入 | B13: * | C13: *
A14: 国有资本经营预算转移支付收入 | B14: * | C14: *
A15: 上年结余收入 | B15: * | C15: *
A16: 国有资本经营预算收入总计 | B16: * | C16: *
A17: 本表预算科目按财政部发布的2017年预算科目列示。

Sheet 国有资本经营支出
A1: 附表15
A2: 西安市阎良区2017年国有资本经营支出决算表
C3: 单位：万元
A4: 项 目 | B4: 2017年 预算数 | C4: 与上年同比+－％
A5: 一、国有资本经营预算支出
A6: 1、解决历史遗留问题及改革成本支出
A7: 2、国有企业资本金注入
A8: 3、其他国有资本经营预算支出
A9: 二、国有企业资本金注入
A10: 三、国有企业政策性补贴
A11: 四、其他国有资本经营预算支出
A12: 国有资本经营预算支出合计
A13: 转移性支出 | B13: * | C13: *
A14: 国有资本经营预算调出资金 | B14: * | C14: *
A15: 结转下年 | B15: * | C15: *
A16: 国有资本经营预算支出总计 | B16: * | C16: *

Sheet 社会保险基金收入
A1: 附表16
A2: 西安市阎良区2017年社会保险基金预算收入决算表
F3: 单位：万元
A4: 项 目 | B4: 2017年 | D4: 2016年决算数 | E4: 2017年决算数
B5: 预算数 | C5: 决算数 | E5: 占预算% | F5: 与上年比+-%
A6: 一、社会保险基金收入 | B6: 3,574 | C6: 12,092 | D6: 12,424 | E6: =C6/B6 -> 338.3% | F6: =B6/D6-1 -> -71.2%
A7: 1、新型农村合作医疗基金收入 | B7: 2,737 | C7: 2,410 | D7: 2,212 | E7: =C7/B7 -> 88.0% | F7: =B7/D7-1 -> 23.7%
A8: 2、城乡居民基本养老保险基金收入 | B8: 837 | C8: 829 | D8: 863 | E8: 99.0% | F8: -3.0%
A9: 3、机关事业单位基本养老保险基金 | B9: 8,854 | C9: 8,854 | D9: 9,349 | E9: 100.0% | F9: -5.3%
A10: 二、利息收入 | B10: 90 | C10: 122 | D10: 429 | E10: 136.0% | F10: -79.0%
A11: 三、财政补贴收入 | B11: 13,796 | C11: 20,282 | D11: 16,776 | E11: 147.0% | F11: -17.8%
A12: 四、人员转移收入 | B12: 12 | C12: 15 | D12: 137 | E12: 124.1% | F12: -91.2%
A15: 社会保险基金预算收入合计 | B15: =SUM(B6,B10:B12) -> 17,472 | C15: 32,512 | D15: 29,766 | E15: =C15/B15 -> 186.1% | F15: =B15/D15-1 -> -41.3%
A16: 转移性收入 | B16: 11,293 | C16: 12,998 | D16: 9,699 | E16: =C16/B16 -> 115.1% | F16: =B16/D16-1 -> 16.4%
A17: 社会保险基金预算上年结余 | B17: 11,293 | C17: 12,998 | D17: 9,699 | E17: =C17/B17 -> 115.1% | F17: =B17/D17-1 -> 16.4%
A18: 社会保险基金预算收入总计 | B18: =B15+B16 -> 28,765 | C18: =C15+C16 -> 45,510 | D18: 39,465 | E18: =C18/B18 -> 158.2% | F18: =B18/D18-1 -> -27.1%
A19: 本表预算科目按财政部发布的2017年预算科目列示。

Sheet 社会保险基金支出
A1: 附表17
A2: 西安市阎良区2017年社会保险基金预算支出决算表
E3: 单位：万元
B4: 2017年 | D4: 2016年决算数 | E4: 2017年决算数
A5: 项 目 | B5: 预算数 | C5: 决算数 | E5: 占预算% | F5: 与上年比+-%
A6: 一、新型农村合作医疗基金支出 | B6: 10,738 | C6: 9,820 | D6: 8,614 | E6: =C6/B6 -> 91.5% | F6: =B6/C6-1 -> 9.3%
A7: 1、统筹基金支出 | B7: 10,139 | C7: 8,892 | D7: 7,763 | E7: 87.7% | F7: 14.0%
A8: 2、大病保险支出 | B8: 599 | C8: 587 | D8: 595 | E8: 98.0% | F8: 2.0%
A9: 3、上解上级 | C9: 342 | D9: 256 | F9: -100.0%
A10: 二、城乡居民基本养老保险基金支出 | B10: =SUM(B11:B14) -> 5,511 | C10: 5,521 | D10: 5,253 | E10: =C10/B10 -> 100.2% | F10: -0.2%
A11: 1、基础养老金支出 | B11: 5,239 | C11: 5,217 | D11: 4,975 | E11: 99.6% | F11: 0.4%
A12: 2、个人账户养老金支出 | B12: 210 | C12: 241 | D12: 217 | E12: 114.7% | F12: -12.8%
A13: 3、丧葬抚恤补助支出 | B13: 60 | C13: 60 | D13: 59 | E13: 100.5% | F13: -0.5%
A14: 4、人员转移支出 | B14: 2 | C14: 3 | D14: 2 | E14: 144.5% | F14: -30.8%
A15: 三、机关事业单位基本养老保险基金 | C15: 13,154 | D15: 12,600 | F15: -100.0%
A16: 1、基本养老金 | C16: 13,154 | D16: 12,600 | F16: -100.0%
A17: 2、转移支出
A18: 社会保险基金预算支出合计 | B18: =B6+B10+B15 -> 16,249 | C18: 28,495 | D18: 26,467 | E18: =C18/B18 -> 175.4% | F18: =B18/C18-1 -> -43.0%
A19: 转移性支出 | B19: 12,516 | C19: 17,015 | D19: 12,998 | E19: 135.9% | F19: -26.4%
A20: 社会保险基金预算年终结余 | B20: 12,516 | C20: 17,015 | D20: 12,998 | E20: 135.9% | F20: -26.4%
A21: 社会保险基金预算支出总计 | B21: =SUM(B18:B19) -> 28,765 | C21: 45,510 | D21: 39,465 | E21: 158.2% | F21: -36.8%

Sheet 三公经费
A1: 附表18
A2: 西安市阎良区2017年“三公”经费决算表
G3: 单位：万元
A4: 项 目 | B4: 合计 | C4: 因公出国（境）费 | D4: 公务接待费 | E4: 公务用车购置及运行维护费
E5: 合计 | F5: 公务用车购置费 | G5: 公务用车运行维护费
A6: 2016年决算数 | B6: =SUM(C6:E6) -> 886.0 | C6: 2 | D6: 52.0 | E6: =SUM(F6:G6) -> 832.0 | G6: 832.0
A7: 2017年决算数 | B7: =SUM(C7:E7) -> 643.0 | C7: 9 | D7: 65.0 | E7: =SUM(F7:G7) -> 569.0 | F7: 65 | G7: 504.0
A8: 2017年决算数较2016年增加 | B8: =B7-B6 -> -243.0 | C8: 7.0 | D8: 13.0 | E8: -263.0 | G8: =G7-G6 -> -328.0
A9: 2017年决算数较2016年增长% | B9: =B8/B7 -> -38% | C9: 78% | D9: 20% | E9: -46% | G9: =G8/G7 -> -65%
